Workbook

Sheet Instructions
A1: Manufacturer | B1: ARC
A2: File as | B2: A
A3: Product Code | B3: N
A4: CCTD Effective Date | B4: 10/1/23
A8: Enter your Company Name
B10: Click on "Index" to set the print area for the price list index
B11: Then you can send it to print
B14: Click on "Suggested Price List" to set the print area for Conestoga Tile's suggested price list.
B15: Then you can send it to print
B18: Enter your discount codes if you want a personal net cost sheet.
B20: Product
B21: Code | C21: Disc. %
B22: =+B3 -> N | C22: 0 | D22: This is a "NET" price list. 0% is the discount for this spreadsheet
B24: Click on "Your Cost" to set the print area for your personal cost report.
B25: Then you can send it to print
A28: Discount: | B28: To help establish your price list, enter the gross profit percent for each type of product.
B29: If you want to use Conestoga Tile's list price, leave them blank.
A31: Round Nickel: | B31: If you always want your price to round to the nearest nickel, enter "YES".
B32: If you enter "NO", it will NOT round to the nearest nickel.
A34: Ending Cents: | B34: If you always want your price to end with a certain cents, enter that cent value.
B35: If you leave it "blank" will NOT round to this cent value.
B37: Group | C37: GP Margin | D37: GP Margin % for | F37: Round Nickel | G37: add/subtract | H37: Ending Cents
B38: 1 | D38: Stocked Pans | F38: No | G38: 0
B39: 2 | D39: Non-Stock Pans | F39: No | G39: 0
B40: 3 | D40: Setting Materials | F40: No | G40: 0
B41: 4 | D41: Accessories | F41: No | G41: 0
B42: 5 | D42: 0 | F42: No | G42: 0
B43: 6 | D43: 0 | F43: No | G43: 0
B44: 7 | D44: 0 | F44: No | G44: 0
A46: If you want to manually adjust your price list, hit "F5" and go to "Customer_Cost" to manually adjust pricing.
A47: You can enter a value in the column labeled "Adj." to change your price manually.
B49: Click on "Your Price Calculation" to set the print area for your personal cost calculation report.
B50: Then you can send it to print
B53: Click on "Your Price List" to set the print area for your personal price list.
B54: Then you can send it to print
H55: Yes
A57: If you have any questions on how to best use this spreadsheet, please feel free to contact
A58: Jim Vogel at (800) 422-6860, ext. 4201 or via e-mail at jimvogel@cctd.com

Sheet Index
F3: ="File '"&Instructions!B2&"' - "&Instructions!B1 -> File 'A' - ARC
A6: ="Price List Index - "&Instructions!B4 -> Price List Index - 10/1/23
A11: Page | C11: Series / Product Type
A12: 1 | C12: TrueDEK Classic8 Shower Bases
A13: 1 | C13: TrueDEK Classic Shower Bases
A14: 1 | C14: TrueDEK Classic Drains
A15: 2 | C15: TrueDEK Linear Shower Bases & TrueDEK Linear Drains
A16: 2-3 | C16: FastDEK Shower Bases
A17: 3 | C17: FastDEK Linear Shower Bases
A18: 3 | C18: FastDEK Standalone Shower Kits
A19: 3 | C19: Waterproofing Kits
A20: 3-4 | C20: Waterproofing Supplies
A21: 4 | C21: FastNICHE Shower Niches
A22: 4 | C22: Glass Shower Screens
A23: 4 | C23: Glass Shower Screens & Deflector Panels
A24: 4 | C24: Bendy Rails
A25: 4 | C25: Breathable Shower Curtains
A26: 4-5 | C26: Caregiver Doors
A27: 5 | C27: Economy Shower Seats (2000 Series)
A28: 5 | C28: Deluxe Shower Seats with Backs & Arms (4000 Series)
A29: 5 | C29: Deluxe Shower Seats without Backs & Arms (4000 Series)
A30: 5 | C30: Deluxe Extra-Wide Shower Seats without Backs & Arms (4000 Series)
A31: 5 | C31: Velena Series Seats
A32: 5-6 | C32: Heavy-Duty Grab Bars & Supports
A33: 6 | C33: Transition Grab Bars
A34: 6 | C34: Rugao Grab Bars
A35: 6 | C35: Velena Wall Panels
A48: This price list is available electronically on an Excel spreadsheet at www.conestogatile.com/pricelists.
A50: The spreadsheet has many special features to assist you. Apply your discount to generate your net costs for your purchasing department. Apply your standard gross margin percentage or custom prices to generate your own custom price list for your showroom. Print out individual price list for each series that can be attached to the back of your sample boards for easy reference.

Sheet Price List
B1: Stocked Pans | E1: Size | G1: Item # | I1: Description | T1: =IF(Suggested="Yes",AB1,AH1) -> 0.05 | U1: EA | V1: =+Instructions!$B$3 -> N | X1: =+Instructions!$C$22 -> 0 | Y1: =ROUND($AB1*(1-X1)+0.004999,2) -> 0.05 | AA1: new | AB1: 0.05 | AC1: =+X1 -> 0 | AD1: 0.05 | AE1: =(AH1-AD1)/AH1 -> 0 | AG1: 1 | AH1: =SUM(AK1:AM1)+AF1 -> 0.05 | AK1: =ROUND(AD1/(1-VLOOKUP(AG1,Group,2,FALSE)),2) -> 0.05 | AL1: =IF(VLOOKUP(AG1,Group,5,FALSE)="YES",VLOOKUP(ROUND(ROUND(AK1,1)-AK1,2),Round,2,FALSE)+VLOOKUP(AG1,Group,6,FALSE),0) -> 0 | AM1: =IF(VLOOKUP(AG1,Group,7,FALSE)="",0,ROUND(AK1-0.04999,1)-AK1+AN1) -> 0 | AN1: =IF(VLOOKUP(AG1,Group,7,FALSE)="","",VLOOKUP(AG1,Group,7,FALSE)) ->  | AP1: X
B2: Non-Stock Pans | E2: Size | G2: Item # | I2: Description | T2: =IF(Suggested="Yes",AB2,AH2) -> 0.05 | U2: EA | V2: =+Instructions!$B$3 -> N | X2: =+Instructions!$C$22 -> 0 | Y2: 0.05 | AA2: new | AB2: 0.05 | AC2: 0 | AD2: 0.05 | AE2: 0 | AG2: 2 | AH2: 0.05 | AK2: 0.05 | AL2: 0 | AM2: 0 | AP2: X
B3: Setting Materials | E3: Size | G3: Item # | I3: Description | T3: =IF(Suggested="Yes",AB3,AH3) -> 0.05 | U3: EA | V3: =+Instructions!$B$3 -> N | X3: =+Instructions!$C$22 -> 0 | Y3: =ROUND($AB3*(1-X3)+0.004999,2) -> 0.05 | AA3: new | AB3: 0.05 | AC3: =+X3 -> 0 | AD3: =+Y3 -> 0.05 | AE3: =(AH3-AD3)/AH3 -> 0 | AG3: 3 | AH3: =SUM(AK3:AM3)+AF3 -> 0.05 | AK3: =ROUND(AD3/(1-VLOOKUP(AG3,Group,2,FALSE)),2) -> 0.05 | AL3: =IF(VLOOKUP(AG3,Group,5,FALSE)="YES",VLOOKUP(ROUND(ROUND(AK3,1)-AK3,2),Round,2,FALSE)+VLOOKUP(AG3,Group,6,FALSE),0) -> 0 | AM3: =IF(VLOOKUP(AG3,Group,7,FALSE)="",0,ROUND(AK3-0.04999,1)-AK3+AN3) -> 0 | AN3: =IF(VLOOKUP(AG3,Group,7,FALSE)="","",VLOOKUP(AG3,Group,7,FALSE)) ->  | AP3: X
B4: Accessories | E4: Size | G4: Item # | I4: Description | T4: 0.05 | U4: EA | V4: =+Instructions!$B$3 -> N | X4: =+Instructions!$C$22 -> 0 | Y4: 0.05 | AA4: new | AB4: 0.05 | AC4: 0 | AD4: 0.05 | AE4: 0 | AG4: 4 | AH4: 0.05 | AK4: 0.05 | AL4: 0 | AM4: 0 | AP4: X
B5: 0 | E5: Size | G5: Item # | I5: Description | T5: 0 | U5: EA | V5: =+Instructions!$B$3 -> N | X5: =+Instructions!$C$22 -> 0 | Y5: 0 | AA5: new | AB5: 0 | AC5: 0 | AD5: 0 | AG5: 5 | AH5: 0 | AK5: 0 | AL5: 0 | AM5: 0 | AP5: X
B6: 0 | E6: Size | G6: Item # | I6: Description | T6: 0 | U6: EA | V6: =+Instructions!$B$3 -> N | X6: =+Instructions!$C$22 -> 0 | Y6: 0 | AA6: new | AB6: 0 | AC6: 0 | AD6: 0 | AG6: 6 | AH6: 0 | AK6: 0 | AL6: 0 | AM6: 0 | AP6: X
B7: 0 | E7: Size | G7: Item # | I7: Description | T7: 0 | U7: EA | V7: =+Instructions!$B$3 -> N | X7: =+Instructions!$C$22 -> 0 | Y7: 0 | AA7: new | AB7: 0 | AC7: 0 | AD7: 0 | AG7: 7 | AH7: 0 | AK7: 0 | AL7: 0 | AM7: 0 | AP7: X
B8: Format | R8: Stock | S8: a | T8: 1000 | U8: ABC | X8: 0.1 | Y8: 1000 | AA8: ABC | AB8: 1000 | AC8: 0.1 | AD8: 1000 | AE8: 0.1 | AF8: 10 | AH8: 1000 | AP8: X
AP9: X
P10: Price List | X10: Cust. Cost | AA10: Customer Cost Calculation | AP10: X
D11: Sizes & Shapes | P11: Full Carton | R11: Stock | S11: Note | T11: =IF(Suggested="Yes",AB11,AH11) -> Net Price | U11: U/M | V11: Code | X11: Disc. | Y11: Net | AA11: Chg | AB11: Net Price | AC11: Disc | AD11: Act. Cost | AE11: GP% | AF11: Adj. | AG11: Group | AH11: Price | AK11: Calc Price | AL11: .05 Round | AM11: Cents | AN11: Round to | AP11: X
AP12: X
O13: ="File '"&Instructions!B2&"' - "&Instructions!B1 -> File 'A' - ARC | X13: Cost | AH13: Retail Price Calculations | AP13: X
U14: =+Instructions!B4 -> 10/1/23 | AF14: =TODAY() -> 2023-09-06 | AP14: X
O15: =IF(Instructions!C8="","",+Instructions!C8) ->  | AP15: X
C16: ="Product Code '"&Instructions!B3&"'" -> Product Code 'N' | AH16: =IF(Instructions!$C$8="","",Instructions!$C$8) ->  | AP16: X
AP17: X
C18: Sizes & Shapes | R18: Stock | S18: Note | T18: =+T$11 -> Net Price | U18: U/M | V18: =+V$11 -> Code | X18: Disc. | Y18: Net | AA18: Chg | AB18: Net Price | AC18: =+AC$11 -> Disc | AD18: Act. Cost | AE18: GP% | AF18: Adj. | AG18: =+AG$11 -> Group | AH18: Price | AK18: Calc Price | AL18: .05 Round | AM18: Cents | AN18: Round to | AP18: X
C19: PRICING LISTED IS NET PRICING. TRADE DISCOUNTS DO NOT APPLY. | AP19: X
AP20: X
C21: TrueDEK Classic8 Shower Bases - 7/8" Thick at edges | S21: Item # Lookup: | T21: AKTF8 | AP21: X
AP22: X
D23: The new TrueDEK Classic8 line of shower bases offers all the exceptional qualities of a TrueDEK Classic with the added benefit
D24: of a rotating drain plate. This plate allows you to index the drain in 8 positions, including centered on the base. Turning the base
D25: 180 degrees results in 7 more unique drain positions, for a total of 15 options to get the best drain position for your shower.
D26: With the fully pitched drain plate, there’s consistent and efficient water drainage throughout the entire shower area.
B28: Non-Stock Pans | E28: 35-1/2" x 35-1/2" | G28: 21130 | T28: =IF(Suggested="Yes",AB28,AH28) -> 694.2 | U28: EA | V28: =+Instructions!$B$3 -> N | X28: =+Instructions!$C$22 -> 0 | Y28: =ROUND($AB28*(1-X28)+0.004999,2) -> 694.2 | AB28: 694.2 | AC28: =+X28 -> 0 | AD28: =+Y28 -> 694.2 | AE28: =(AH28-AD28)/AH28 -> 0 | AG28: 2 | AH28: =SUM(AK28:AM28)+AF28 -> 694.2 | AK28: =ROUND(AD28/(1-VLOOKUP(AG28,Group,2,FALSE)),2) -> 694.2 | AL28: =IF(VLOOKUP(AG28,Group,5,FALSE)="YES",VLOOKUP(ROUND(ROUND(AK28,1)-AK28,2),Round,2,FALSE)+VLOOKUP(AG28,Group,6,FALSE),0) -> 0 | AM28: =IF(VLOOKUP(AG28,Group,7,FALSE)="",0,ROUND(AK28-0.04999,1)-AK28+AN28) -> 0 | AN28: =IF(VLOOKUP(AG28,Group,7,FALSE)="","",VLOOKUP(AG28,Group,7,FALSE)) ->  | AP28: X
B29: Non-Stock Pans | E29: 39-3/8" x 39-3/8" | G29: 21131 | T29: 694.65 | U29: EA | V29: =+Instructions!$B$3 -> N | X29: =+Instructions!$C$22 -> 0 | Y29: 694.65 | AB29: 694.65 | AC29: 0 | AD29: 694.65 | AE29: 0 | AG29: 2 | AH29: 694.65 | AK29: 694.65 | AL29: 0 | AM29: 0 | AP29: X
B30: Non-Stock Pans | E30: 44-3/4" x 30-1/4" | G30: 21132 | T30: 694.45 | U30: EA | V30: =+Instructions!$B$3 -> N | X30: =+Instructions!$C$22 -> 0 | Y30: 694.45 | AB30: 694.45 | AC30: 0 | AD30: 694.45 | AE30: 0 | AG30: 2 | AH30: 694.45 | AK30: 694.45 | AL30: 0 | AM30: 0 | AP30: X
B31: Stocked Pans | E31: 47-1/4" x 47-1/4" | G31: 21133 | R31: Stock | T31: =IF(Suggested="Yes",AB31,AH31) -> 695.3 | U31: EA | V31: =+Instructions!$B$3 -> N | X31: =+Instructions!$C$22 -> 0 | Y31: 695.3 | AA31: new | AB31: 695.3 | AC31: 0 | AD31: 695.3 | AE31: 0 | AG31: 1 | AH31: 695.3 | AK31: 695.3 | AL31: 0 | AM31: 0 | AP31: X
B32: Non-Stock Pans | E32: 51-1/4" x 32-1/4" | G32: 21134 | T32: 694.65 | U32: EA | V32: =+Instructions!$B$3 -> N | X32: =+Instructions!$C$22 -> 0 | Y32: 694.65 | AB32: 694.65 | AC32: 0 | AD32: 694.65 | AE32: 0 | AG32: 2 | AH32: 694.65 | AK32: 694.65 | AL32: 0 | AM32: 0 | AP32: X
B33: Non-Stock Pans | E33: 55-1/8" x 35-1/2" | G33: 21135 | T33: 694.9 | U33: EA | V33: =+Instructions!$B$3 -> N | X33: =+Instructions!$C$22 -> 0 | Y33: 694.9 | AB33: 694.9 | AC33: 0 | AD33: 694.9 | AE33: 0 | AG33: 2 | AH33: 694.9 | AK33: 694.9 | AL33: 0 | AM33: 0 | AP33: X
B34: Stocked Pans | E34: 59" x 32-1/4" | G34: 21136 | R34: Stock | T34: =IF(Suggested="Yes",AB34,AH34) -> 694.9 | U34: EA | V34: =+Instructions!$B$3 -> N | X34: =+Instructions!$C$22 -> 0 | Y34: =ROUND($AB34*(1-X34)+0.004999,2) -> 694.9 | AA34: new | AB34: 694.9 | AC34: =+X34 -> 0 | AD34: =+Y34 -> 694.9 | AE34: =(AH34-AD34)/AH34 -> 0 | AG34: 1 | AH34: =SUM(AK34:AM34)+AF34 -> 694.9 | AK34: =ROUND(AD34/(1-VLOOKUP(AG34,Group,2,FALSE)),2) -> 694.9 | AL34: =IF(VLOOKUP(AG34,Group,5,FALSE)="YES",VLOOKUP(ROUND(ROUND(AK34,1)-AK34,2),Round,2,FALSE)+VLOOKUP(AG34,Group,6,FALSE),0) -> 0 | AM34: =IF(VLOOKUP(AG34,Group,7,FALSE)="",0,ROUND(AK34-0.04999,1)-AK34+AN34) -> 0 | AN34: =IF(VLOOKUP(AG34,Group,7,FALSE)="","",VLOOKUP(AG34,Group,7,FALSE)) ->  | AP34: X
B35: Stocked Pans | E35: 59" x 47-1/4" | G35: 21137 | R35: Stock | T35: =IF(Suggested="Yes",AB35,AH35) -> 759.45 | U35: EA | V35: =+Instructions!$B$3 -> N | X35: =+Instructions!$C$22 -> 0 | Y35: =ROUND($AB35*(1-X35)+0.004999,2) -> 759.45 | AA35: new | AB35: 759.45 | AC35: =+X35 -> 0 | AD35: =+Y35 -> 759.45 | AE35: =(AH35-AD35)/AH35 -> 0 | AG35: 1 | AH35: =SUM(AK35:AM35)+AF35 -> 759.45 | AK35: =ROUND(AD35/(1-VLOOKUP(AG35,Group,2,FALSE)),2) -> 759.45 | AL35: =IF(VLOOKUP(AG35,Group,5,FALSE)="YES",VLOOKUP(ROUND(ROUND(AK35,1)-AK35,2),Round,2,FALSE)+VLOOKUP(AG35,Group,6,FALSE),0) -> 0 | AM35: =IF(VLOOKUP(AG35,Group,7,FALSE)="",0,ROUND(AK35-0.04999,1)-AK35+AN35) -> 0 | AN35: =IF(VLOOKUP(AG35,Group,7,FALSE)="","",VLOOKUP(AG35,Group,7,FALSE)) ->  | AP35: X
B36: Non-Stock Pans | E36: 70-7/8" x 32-1/4" | G36: 21138 | T36: 759 | U36: EA | V36: =+Instructions!$B$3 -> N | X36: =+Instructions!$C$22 -> 0 | Y36: 759 | AB36: 759 | AC36: 0 | AD36: 759 | AE36: 0 | AG36: 2 | AH36: 759 | AK36: 759 | AL36: 0 | AM36: 0 | AP36: X
AP37: X
B38: Stocked Pans | E38: 12" x 60" | G38: TB6012-PXT | K38: TruePITCH Extension | R38: Stock | T38: =IF(Suggested="Yes",AB38,AH38) -> 83.3 | U38: EA | V38: =+Instructions!$B$3 -> N | X38: =+Instructions!$C$22 -> 0 | Y38: =ROUND($AB38*(1-X38)+0.004999,2) -> 83.3 | AA38: new | AB38: 83.3 | AC38: =+X38 -> 0 | AD38: =+Y38 -> 83.3 | AE38: =(AH38-AD38)/AH38 -> 0 | AG38: 1 | AH38: =SUM(AK38:AM38)+AF38 -> 83.3 | AK38: =ROUND(AD38/(1-VLOOKUP(AG38,Group,2,FALSE)),2) -> 83.3 | AL38: =IF(VLOOKUP(AG38,Group,5,FALSE)="YES",VLOOKUP(ROUND(ROUND(AK38,1)-AK38,2),Round,2,FALSE)+VLOOKUP(AG38,Group,6,FALSE),0) -> 0 | AM38: =IF(VLOOKUP(AG38,Group,7,FALSE)="",0,ROUND(AK38-0.04999,1)-AK38+AN38) -> 0 | AN38: =IF(VLOOKUP(AG38,Group,7,FALSE)="","",VLOOKUP(AG38,Group,7,FALSE)) ->  | AP38: X
AP39: X
C40: TrueDEK Classic Shower Bases - 7/8" Thick at edges | S40: Item # Lookup: | T40: AKTF | AP40: X
AP41: X
D42: - A barrier-free shower pan system. Requires only 7/8" recess into the floor, is designed to sit on the floor joists
D43: 16" on center,edge support minimizes the need to restructure the floor.
D44: - Can be cut on site, to any shape or size within 6" of the drain.
D45: - Eliminates the need to profile the floor manually with no water dam or curb required.
D46: - Manufactured of Glass Reinforced Plastic for maximum strength - certified compliant w/ IRC, IPC, UPC, NPC
D47: & IAPMO PS106-2015E1 for pre-fabricated tileable shower receptors.
B49: Non-Stock Pans | E49: 35-1/2" x 35-1/2" | G49: 21000 | T49: =IF(Suggested="Yes",AB49,AH49) -> 654.6 | U49: EA | V49: =+Instructions!$B$3 -> N | X49: =+Instructions!$C$22 -> 0 | Y49: =ROUND($AB49*(1-X49)+0.004999,2) -> 654.6 | AB49: 654.6 | AC49: =+X49 -> 0 | AD49: =+Y49 -> 654.6 | AE49: =(AH49-AD49)/AH49 -> 0 | AG49: 2 | AH49: =SUM(AK49:AM49)+AF49 -> 654.6 | AK49: =ROUND(AD49/(1-VLOOKUP(AG49,Group,2,FALSE)),2) -> 654.6 | AL49: =IF(VLOOKUP(AG49,Group,5,FALSE)="YES",VLOOKUP(ROUND(ROUND(AK49,1)-AK49,2),Round,2,FALSE)+VLOOKUP(AG49,Group,6,FALSE),0) -> 0 | AM49: =IF(VLOOKUP(AG49,Group,7,FALSE)="",0,ROUND(AK49-0.04999,1)-AK49+AN49) -> 0 | AN49: =IF(VLOOKUP(AG49,Group,7,FALSE)="","",VLOOKUP(AG49,Group,7,FALSE)) ->  | AP49: X
B50: Non-Stock Pans | E50: 39-3/8" x 39-3/8" | G50: 21008 | T50: 655.05 | U50: EA | V50: =+Instructions!$B$3 -> N | X50: =+Instructions!$C$22 -> 0 | Y50: 655.05 | AB50: 655.05 | AC50: 0 | AD50: 655.05 | AE50: 0 | AG50: 2 | AH50: 655.05 | AK50: 655.05 | AL50: 0 | AM50: 0 | AP50: X
B51: Non-Stock Pans | E51: 44-3/4" x 30-1/4" | G51: 21012 | T51: 654.85 | U51: EA | V51: =+Instructions!$B$3 -> N | X51: =+Instructions!$C$22 -> 0 | Y51: 654.85 | AB51: 654.85 | AC51: 0 | AD51: 654.85 | AE51: 0 | AG51: 2 | AH51: 654.85 | AK51: 654.85 | AL51: 0 | AM51: 0 | AP51: X
B52: Stocked Pans | E52: 47-1/4" x 47-1/4" | G52: 21018 | R52: Stock | T52: 647.55 | U52: EA | V52: =+Instructions!$B$3 -> N | X52: =+Instructions!$C$22 -> 0 | Y52: 647.55 | AB52: 647.55 | AC52: 0 | AD52: 647.55 | AE52: 0 | AG52: 1 | AH52: 647.55 | AK52: 647.55 | AL52: 0 | AM52: 0 | AP52: X
B53: Non-Stock Pans | E53: 51-1/4" x 32-1/4" | G53: 21027 | T53: 655.05 | U53: EA | V53: =+Instructions!$B$3 -> N | X53: =+Instructions!$C$22 -> 0 | Y53: 655.05 | AB53: 655.05 | AC53: 0 | AD53: 655.05 | AE53: 0 | AG53: 2 | AH53: 655.05 | AK53: 655.05 | AL53: 0 | AM53: 0 | AP53: X
B54: Stocked Pans | E54: 55-1/8" x 35-1/2" | G54: 21028 | R54: Stock | T54: 647.2 | U54: EA | V54: =+Instructions!$B$3 -> N | X54: =+Instructions!$C$22 -> 0 | Y54: 647.2 | AB54: 647.2 | AC54: 0 | AD54: 647.2 | AE54: 0 | AG54: 1 | AH54: 647.2 | AK54: 647.2 | AL54: 0 | AM54: 0 | AP54: X
B55: Stocked Pans | E55: 59" x 32-1/4" | G55: 21036 | K55: Tub Replacement Base | R55: Stock | T55: 647.2 | U55: EA | V55: =+Instructions!$B$3 -> N | X55: =+Instructions!$C$22 -> 0 | Y55: 647.2 | AB55: 647.2 | AC55: 0 | AD55: 647.2 | AE55: 0 | AG55: 1 | AH55: 647.2 | AK55: 647.2 | AL55: 0 | AM55: 0 | AP55: X
B56: Stocked Pans | E56: 60" x 36" | G56: 21035 | K56: Tub Replacement Base (Center drain hole located on end) | R56: Stock | T56: =IF(Suggested="Yes",AB56,AH56) -> 647.55 | U56: EA | V56: =+Instructions!$B$3 -> N | X56: =+Instructions!$C$22 -> 0 | Y56: 647.55 | AB56: 647.55 | AC56: 0 | AD56: 647.55 | AE56: 0 | AG56: 1 | AH56: 647.55 | AK56: 647.55 | AL56: 0 | AM56: 0 | AP56: X
B57: Stocked Pans | E57: 59" x 47-1/4" | G57: 21045 | R57: Stock | T57: 701.4 | U57: EA | V57: =+Instructions!$B$3 -> N | X57: =+Instructions!$C$22 -> 0 | Y57: 701.4 | AB57: 701.4 | AC57: 0 | AD57: 701.4 | AE57: 0 | AG57: 1 | AH57: 701.4 | AK57: 701.4 | AL57: 0 | AM57: 0 | AP57: X
B58: Stocked Pans | E58: 70-7/8" x 32-1/4" | G58: 21050 | R58: Stock | T58: 701 | U58: EA | V58: =+Instructions!$B$3 -> N | X58: =+Instructions!$C$22 -> 0 | Y58: 701 | AB58: 701 | AC58: 0 | AD58: 701 | AE58: 0 | AG58: 1 | AH58: 701 | AK58: 701 | AL58: 0 | AM58: 0 | AP58: X
B59: Stocked Pans | E59: 72" x 48" | G59: 21053 | R59: Stock | T59: =IF(Suggested="Yes",AB59,AH59) -> 735.2 | U59: EA | V59: =+Instructions!$B$3 -> N | X59: =+Instructions!$C$22 -> 0 | Y59: 735.2 | AA59: new | AB59: 735.2 | AC59: 0 | AD59: 735.2 | AE59: 0 | AG59: 1 | AH59: 735.2 | AK59: 735.2 | AL59: 0 | AM59: 0 | AP59: X
AP60: X
B61: Stocked Pans | E61: 12" x 60" | G61: TB6012-PXT | K61: TruePITCH Extension | R61: Stock | T61: =IF(Suggested="Yes",AB61,AH61) -> 83.3 | U61: EA | V61: =+Instructions!$B$3 -> N | X61: =+Instructions!$C$22 -> 0 | Y61: =ROUND($AB61*(1-X61)+0.004999,2) -> 83.3 | AA61: new | AB61: 83.3 | AC61: =+X61 -> 0 | AD61: =+Y61 -> 83.3 | AE61: =(AH61-AD61)/AH61 -> 0 | AG61: 1 | AH61: =SUM(AK61:AM61)+AF61 -> 83.3 | AK61: =ROUND(AD61/(1-VLOOKUP(AG61,Group,2,FALSE)),2) -> 83.3 | AL61: =IF(VLOOKUP(AG61,Group,5,FALSE)="YES",VLOOKUP(ROUND(ROUND(AK61,1)-AK61,2),Round,2,FALSE)+VLOOKUP(AG61,Group,6,FALSE),0) -> 0 | AM61: =IF(VLOOKUP(AG61,Group,7,FALSE)="",0,ROUND(AK61-0.04999,1)-AK61+AN61) -> 0 | AN61: =IF(VLOOKUP(AG61,Group,7,FALSE)="","",VLOOKUP(AG61,Group,7,FALSE)) ->  | AP61: X
AP62: X
D63: Notes: | E63: Use Tank/10 waterproofing for complete system warranty. | L63: a) Not for use with the 21035 TrueDEK Classic Shower Base. | AP63: X
AP64: X
C65: TrueDEK Classic Drains | S65: Item # Lookup: | T65: AKTF | AP65: X
AP66: X
B67: Setting Materials | G67: CD1250-BS | J67: Classic Drain Assembly w/ Brushed Stainless Steel Pinhole Pattern Grate | S67: a | T67: =IF(Suggested="Yes",AB67,AH67) -> 142.5 | U67: EA | V67: =+Instructions!$B$3 -> N | X67: =+Instructions!$C$22 -> 0 | Y67: =ROUND($AB67*(1-X67)+0.004999,2) -> 142.5 | AB67: 142.5 | AC67: =+X67 -> 0 | AD67: =+Y67 -> 142.5 | AE67: =(AH67-AD67)/AH67 -> 0 | AG67: 3 | AH67: =SUM(AK67:AM67)+AF67 -> 142.5 | AK67: =ROUND(AD67/(1-VLOOKUP(AG67,Group,2,FALSE)),2) -> 142.5 | AL67: =IF(VLOOKUP(AG67,Group,5,FALSE)="YES",VLOOKUP(ROUND(ROUND(AK67,1)-AK67,2),Round,2,FALSE)+VLOOKUP(AG67,Group,6,FALSE),0) -> 0 | AM67: =IF(VLOOKUP(AG67,Group,7,FALSE)="",0,ROUND(AK67-0.04999,1)-AK67+AN67) -> 0 | AN67: =IF(VLOOKUP(AG67,Group,7,FALSE)="","",VLOOKUP(AG67,Group,7,FALSE)) ->  | AP67: X
B68: Setting Materials | G68: CD1210-BS | J68: Classic Drain Assembly w/ Brushed Stainless Steel Swirl Pattern Grate | R68: Stock | S68: a | T68: =IF(Suggested="Yes",AB68,AH68) -> 142.5 | U68: EA | V68: =+Instructions!$B$3 -> N | X68: =+Instructions!$C$22 -> 0 | Y68: =ROUND($AB68*(1-X68)+0.004999,2) -> 142.5 | AB68: 142.5 | AC68: =+X68 -> 0 | AD68: =+Y68 -> 142.5 | AE68: =(AH68-AD68)/AH68 -> 0 | AG68: 3 | AH68: =SUM(AK68:AM68)+AF68 -> 142.5 | AK68: =ROUND(AD68/(1-VLOOKUP(AG68,Group,2,FALSE)),2) -> 142.5 | AL68: =IF(VLOOKUP(AG68,Group,5,FALSE)="YES",VLOOKUP(ROUND(ROUND(AK68,1)-AK68,2),Round,2,FALSE)+VLOOKUP(AG68,Group,6,FALSE),0) -> 0 | AM68: =IF(VLOOKUP(AG68,Group,7,FALSE)="",0,ROUND(AK68-0.04999,1)-AK68+AN68) -> 0 | AN68: =IF(VLOOKUP(AG68,Group,7,FALSE)="","",VLOOKUP(AG68,Group,7,FALSE)) ->  | AP68: X
AP69: X
B70: Setting Materials | G70: CD1233-BK | J70: Classic Drain Assembly w/ Matte Black Pinhole Pattern Grate | S70: a | T70: =IF(Suggested="Yes",AB70,AH70) -> 229.6 | U70: EA | V70: =+Instructions!$B$3 -> N | X70: =+Instructions!$C$22 -> 0 | Y70: =ROUND($AB70*(1-X70)+0.004999,2) -> 229.6 | AB70: 229.6 | AC70: =+X70 -> 0 | AD70: =+Y70 -> 229.6 | AE70: =(AH70-AD70)/AH70 -> 0 | AG70: 3 | AH70: =SUM(AK70:AM70)+AF70 -> 229.6 | AK70: =ROUND(AD70/(1-VLOOKUP(AG70,Group,2,FALSE)),2) -> 229.6 | AL70: =IF(VLOOKUP(AG70,Group,5,FALSE)="YES",VLOOKUP(ROUND(ROUND(AK70,1)-AK70,2),Round,2,FALSE)+VLOOKUP(AG70,Group,6,FALSE),0) -> 0 | AM70: =IF(VLOOKUP(AG70,Group,7,FALSE)="",0,ROUND(AK70-0.04999,1)-AK70+AN70) -> 0 | AN70: =IF(VLOOKUP(AG70,Group,7,FALSE)="","",VLOOKUP(AG70,Group,7,FALSE)) ->  | AP70: X
B71: Setting Materials | G71: CD1213-BK | J71: Classic Drain Assembly w/ Matte Black Swirl Pattern Grate | S71: a | T71: =IF(Suggested="Yes",AB71,AH71) -> 229.6 | U71: EA | V71: =+Instructions!$B$3 -> N | X71: =+Instructions!$C$22 -> 0 | Y71: =ROUND($AB71*(1-X71)+0.004999,2) -> 229.6 | AB71: 229.6 | AC71: =+X71 -> 0 | AD71: =+Y71 -> 229.6 | AE71: =(AH71-AD71)/AH71 -> 0 | AG71: 3 | AH71: =SUM(AK71:AM71)+AF71 -> 229.6 | AK71: =ROUND(AD71/(1-VLOOKUP(AG71,Group,2,FALSE)),2) -> 229.6 | AL71: =IF(VLOOKUP(AG71,Group,5,FALSE)="YES",VLOOKUP(ROUND(ROUND(AK71,1)-AK71,2),Round,2,FALSE)+VLOOKUP(AG71,Group,6,FALSE),0) -> 0 | AM71: =IF(VLOOKUP(AG71,Group,7,FALSE)="",0,ROUND(AK71-0.04999,1)-AK71+AN71) -> 0 | AN71: =IF(VLOOKUP(AG71,Group,7,FALSE)="","",VLOOKUP(AG71,Group,7,FALSE)) ->  | AP71: X
AP72: X
B73: Setting Materials | G73: CD1240-ORB | J73: Classic Drain Assembly w/ Oil-Rubbed Bronze Pinhole Pattern Grate | S73: a | T73: =IF(Suggested="Yes",AB73,AH73) -> 229.6 | U73: EA | V73: =+Instructions!$B$3 -> N | X73: =+Instructions!$C$22 -> 0 | Y73: =ROUND($AB73*(1-X73)+0.004999,2) -> 229.6 | AB73: 229.6 | AC73: =+X73 -> 0 | AD73: =+Y73 -> 229.6 | AE73: =(AH73-AD73)/AH73 -> 0 | AG73: 3 | AH73: =SUM(AK73:AM73)+AF73 -> 229.6 | AK73: =ROUND(AD73/(1-VLOOKUP(AG73,Group,2,FALSE)),2) -> 229.6 | AL73: =IF(VLOOKUP(AG73,Group,5,FALSE)="YES",VLOOKUP(ROUND(ROUND(AK73,1)-AK73,2),Round,2,FALSE)+VLOOKUP(AG73,Group,6,FALSE),0) -> 0 | AM73: =IF(VLOOKUP(AG73,Group,7,FALSE)="",0,ROUND(AK73-0.04999,1)-AK73+AN73) -> 0 | AN73: =IF(VLOOKUP(AG73,Group,7,FALSE)="","",VLOOKUP(AG73,Group,7,FALSE)) ->  | AP73: X
B74: Setting Materials | G74: CD1230-ORB | J74: Classic Drain Assembly w/ Oil-Rubbed Bronze Swirl Pattern Grate | R74: Stock | S74: a | T74: =IF(Suggested="Yes",AB74,AH74) -> 229.6 | U74: EA | V74: =+Instructions!$B$3 -> N | X74: =+Instructions!$C$22 -> 0 | Y74: =ROUND($AB74*(1-X74)+0.004999,2) -> 229.6 | AB74: 229.6 | AC74: =+X74 -> 0 | AD74: =+Y74 -> 229.6 | AE74: =(AH74-AD74)/AH74 -> 0 | AG74: 3 | AH74: =SUM(AK74:AM74)+AF74 -> 229.6 | AK74: =ROUND(AD74/(1-VLOOKUP(AG74,Group,2,FALSE)),2) -> 229.6 | AL74: =IF(VLOOKUP(AG74,Group,5,FALSE)="YES",VLOOKUP(ROUND(ROUND(AK74,1)-AK74,2),Round,2,FALSE)+VLOOKUP(AG74,Group,6,FALSE),0) -> 0 | AM74: =IF(VLOOKUP(AG74,Group,7,FALSE)="",0,ROUND(AK74-0.04999,1)-AK74+AN74) -> 0 | AN74: =IF(VLOOKUP(AG74,Group,7,FALSE)="","",VLOOKUP(AG74,Group,7,FALSE)) ->  | AP74: X
AP75: X
B76: Setting Materials | G76: CD1280-CH | J76: Classic Drain Assembly w/ Polished Stainless Steel Pinhole Pattern Grate | S76: a | T76: =IF(Suggested="Yes",AB76,AH76) -> 185.7 | U76: EA | V76: =+Instructions!$B$3 -> N | X76: =+Instructions!$C$22 -> 0 | Y76: =ROUND($AB76*(1-X76)+0.004999,2) -> 185.7 | AB76: 185.7 | AC76: =+X76 -> 0 | AD76: =+Y76 -> 185.7 | AE76: =(AH76-AD76)/AH76 -> 0 | AG76: 3 | AH76: =SUM(AK76:AM76)+AF76 -> 185.7 | AK76: =ROUND(AD76/(1-VLOOKUP(AG76,Group,2,FALSE)),2) -> 185.7 | AL76: =IF(VLOOKUP(AG76,Group,5,FALSE)="YES",VLOOKUP(ROUND(ROUND(AK76,1)-AK76,2),Round,2,FALSE)+VLOOKUP(AG76,Group,6,FALSE),0) -> 0 | AM76: =IF(VLOOKUP(AG76,Group,7,FALSE)="",0,ROUND(AK76-0.04999,1)-AK76+AN76) -> 0 | AN76: =IF(VLOOKUP(AG76,Group,7,FALSE)="","",VLOOKUP(AG76,Group,7,FALSE)) ->  | AP76: X
B77: Setting Materials | G77: CD1290-CH | J77: Classic Drain Assembly w/ Polished Stainless Steel Swirl Pattern Grate | R77: Stock | S77: a | T77: =IF(Suggested="Yes",AB77,AH77) -> 185.7 | U77: EA | V77: =+Instructions!$B$3 -> N | X77: =+Instructions!$C$22 -> 0 | Y77: =ROUND($AB77*(1-X77)+0.004999,2) -> 185.7 | AB77: 185.7 | AC77: =+X77 -> 0 | AD77: =+Y77 -> 185.7 | AE77: =(AH77-AD77)/AH77 -> 0 | AG77: 3 | AH77: =SUM(AK77:AM77)+AF77 -> 185.7 | AK77: =ROUND(AD77/(1-VLOOKUP(AG77,Group,2,FALSE)),2) -> 185.7 | AL77: =IF(VLOOKUP(AG77,Group,5,FALSE)="YES",VLOOKUP(ROUND(ROUND(AK77,1)-AK77,2),Round,2,FALSE)+VLOOKUP(AG77,Group,6,FALSE),0) -> 0 | AM77: =IF(VLOOKUP(AG77,Group,7,FALSE)="",0,ROUND(AK77-0.04999,1)-AK77+AN77) -> 0 | AN77: =IF(VLOOKUP(AG77,Group,7,FALSE)="","",VLOOKUP(AG77,Group,7,FALSE)) ->  | AP77: X
AP78: X
B79: Setting Materials | G79: CD1270-SBP | J79: Classic Drain Assembly w/ Satin Brass Pinhole Pattern Grate | S79: a | T79: =IF(Suggested="Yes",AB79,AH79) -> 229.6 | U79: EA | V79: =+Instructions!$B$3 -> N | X79: =+Instructions!$C$22 -> 0 | Y79: =ROUND($AB79*(1-X79)+0.004999,2) -> 229.6 | AA79: new | AB79: 229.6 | AC79: =+X79 -> 0 | AD79: =+Y79 -> 229.6 | AE79: =(AH79-AD79)/AH79 -> 0 | AG79: 3 | AH79: =SUM(AK79:AM79)+AF79 -> 229.6 | AK79: =ROUND(AD79/(1-VLOOKUP(AG79,Group,2,FALSE)),2) -> 229.6 | AL79: =IF(VLOOKUP(AG79,Group,5,FALSE)="YES",VLOOKUP(ROUND(ROUND(AK79,1)-AK79,2),Round,2,FALSE)+VLOOKUP(AG79,Group,6,FALSE),0) -> 0 | AM79: =IF(VLOOKUP(AG79,Group,7,FALSE)="",0,ROUND(AK79-0.04999,1)-AK79+AN79) -> 0 | AN79: =IF(VLOOKUP(AG79,Group,7,FALSE)="","",VLOOKUP(AG79,Group,7,FALSE)) ->  | AP79: X
B80: Setting Materials | G80: CD1271-SBS | J80: Classic Drain Assembly w/ Satin Brass Swirl Pattern Grate | S80: a | T80: =IF(Suggested="Yes",AB80,AH80) -> 229.6 | U80: EA | V80: =+Instructions!$B$3 -> N | X80: =+Instructions!$C$22 -> 0 | Y80: =ROUND($AB80*(1-X80)+0.004999,2) -> 229.6 | AA80: new | AB80: 229.6 | AC80: =+X80 -> 0 | AD80: =+Y80 -> 229.6 | AE80: =(AH80-AD80)/AH80 -> 0 | AG80: 3 | AH80: =SUM(AK80:AM80)+AF80 -> 229.6 | AK80: =ROUND(AD80/(1-VLOOKUP(AG80,Group,2,FALSE)),2) -> 229.6 | AL80: =IF(VLOOKUP(AG80,Group,5,FALSE)="YES",VLOOKUP(ROUND(ROUND(AK80,1)-AK80,2),Round,2,FALSE)+VLOOKUP(AG80,Group,6,FALSE),0) -> 0 | AM80: =IF(VLOOKUP(AG80,Group,7,FALSE)="",0,ROUND(AK80-0.04999,1)-AK80+AN80) -> 0 | AN80: =IF(VLOOKUP(AG80,Group,7,FALSE)="","",VLOOKUP(AG80,Group,7,FALSE)) ->  | AP80: X
AP81: X
B82: Setting Materials | G82: CD1260 | J82: Classic Tile-In Drain Assembly w/ Stainless Steel Drain Cover | S82: b | T82: =IF(Suggested="Yes",AB82,AH82) -> 143.4 | U82: EA | V82: =+Instructions!$B$3 -> N | X82: =+Instructions!$C$22 -> 0 | Y82: =ROUND($AB82*(1-X82)+0.004999,2) -> 143.4 | AA82: new | AB82: 143.4 | AC82: =+X82 -> 0 | AD82: =+Y82 -> 143.4 | AE82: =(AH82-AD82)/AH82 -> 0 | AG82: 3 | AH82: =SUM(AK82:AM82)+AF82 -> 143.4 | AK82: =ROUND(AD82/(1-VLOOKUP(AG82,Group,2,FALSE)),2) -> 143.4 | AL82: =IF(VLOOKUP(AG82,Group,5,FALSE)="YES",VLOOKUP(ROUND(ROUND(AK82,1)-AK82,2),Round,2,FALSE)+VLOOKUP(AG82,Group,6,FALSE),0) -> 0 | AM82: =IF(VLOOKUP(AG82,Group,7,FALSE)="",0,ROUND(AK82-0.04999,1)-AK82+AN82) -> 0 | AN82: =IF(VLOOKUP(AG82,Group,7,FALSE)="","",VLOOKUP(AG82,Group,7,FALSE)) ->  | AP82: X
AP83: X
B84: Setting Materials | G84: CD1250-VL | J84: Classic Drain Assembly for Vinyl Flooring w/ White Grate | S84: c | T84: =IF(Suggested="Yes",AB84,AH84) -> 41.4 | U84: EA | V84: =+Instructions!$B$3 -> N | X84: =+Instructions!$C$22 -> 0 | Y84: =ROUND($AB84*(1-X84)+0.004999,2) -> 41.4 | AB84: 41.4 | AC84: =+X84 -> 0 | AD84: =+Y84 -> 41.4 | AE84: =(AH84-AD84)/AH84 -> 0 | AG84: 3 | AH84: =SUM(AK84:AM84)+AF84 -> 41.4 | AK84: =ROUND(AD84/(1-VLOOKUP(AG84,Group,2,FALSE)),2) -> 41.4 | AL84: =IF(VLOOKUP(AG84,Group,5,FALSE)="YES",VLOOKUP(ROUND(ROUND(AK84,1)-AK84,2),Round,2,FALSE)+VLOOKUP(AG84,Group,6,FALSE),0) -> 0 | AM84: =IF(VLOOKUP(AG84,Group,7,FALSE)="",0,ROUND(AK84-0.04999,1)-AK84+AN84) -> 0 | AN84: =IF(VLOOKUP(AG84,Group,7,FALSE)="","",VLOOKUP(AG84,Group,7,FALSE)) ->  | AP84: X
AP85: X
B86: Setting Materials | G86: DC5500-PVC | J86: 2" PVC Drain Line Connector | T86: =IF(Suggested="Yes",AB86,AH86) -> 17.95 | U86: EA | V86: =+Instructions!$B$3 -> N | X86: =+Instructions!$C$22 -> 0 | Y86: =ROUND($AB86*(1-X86)+0.004999,2) -> 17.95 | AB86: 17.95 | AC86: =+X86 -> 0 | AD86: =+Y86 -> 17.95 | AE86: =(AH86-AD86)/AH86 -> 0 | AG86: 3 | AH86: =SUM(AK86:AM86)+AF86 -> 17.95 | AK86: =ROUND(AD86/(1-VLOOKUP(AG86,Group,2,FALSE)),2) -> 17.95 | AL86: =IF(VLOOKUP(AG86,Group,5,FALSE)="YES",VLOOKUP(ROUND(ROUND(AK86,1)-AK86,2),Round,2,FALSE)+VLOOKUP(AG86,Group,6,FALSE),0) -> 0 | AM86: =IF(VLOOKUP(AG86,Group,7,FALSE)="",0,ROUND(AK86-0.04999,1)-AK86+AN86) -> 0 | AN86: =IF(VLOOKUP(AG86,Group,7,FALSE)="","",VLOOKUP(AG86,Group,7,FALSE)) ->  | AP86: X
AP87: X
D88: Notes: | E88: a) Includes Drain Gasket & DC5500-PVC 2" PVC Drain line connector. | AP88: X
E89: b) Compatible with all TrueDEK Classic and TrueDEK Classic8 shower bases. Includes Drain | AP89: X
E90: Gasket, DC5500-PVC 2" PVC Drain line connector, 4 screws and a 2" Fernco Hub drain coupling. | AP90: X
E91: c) Includes DC5500-PVC 2" PVC Drain line connector. | AP91: X
AP92: X
C93: TrueDEK Linear Shower Bases & TrueDEK Linear Drains | S93: Item # Lookup: | T93: AKTF | AP93: X
AP94: X
D95: - Structural glass reinforced plastic shower foundation spans 16" on-center joists, 7/8" Thick at edges.
D96: - Integrated linear drain handles high flow showers - up to 17 gallons per minute.
D97: - Rated to support up to 560 lbs. when properly installed on joists.
D98: - Reversible two-in-one stainless steel drain covers allow for tile inserts up to 5/8" thick.
D99: - Suited for hydronic or electric mat heat installation.
D100: - certified compliant w/ IRC, IPC, UPC, NPC & IAPMO PS106-2015E1 for pre-fabricated tileable
D101: shower receptors (complies w/ ANSI Z124.1.2-2005).
AP102: X
B103: Non-Stock Pans | E103: 35-1/2" x 35-1/2" | G103: 21205 | K103: TrueDEK Linear Base | S103: a | T103: =IF(Suggested="Yes",AB103,AH103) -> 644.85 | U103: EA | V103: =+Instructions!$B$3 -> N | X103: =+Instructions!$C$22 -> 0 | Y103: =ROUND($AB103*(1-X103)+0.004999,2) -> 644.85 | AB103: 644.85 | AC103: =+X103 -> 0 | AD103: 644.85 | AE103: =(AH103-AD103)/AH103 -> 0 | AG103: 2 | AH103: =SUM(AK103:AM103)+AF103 -> 644.85 | AK103: =ROUND(AD103/(1-VLOOKUP(AG103,Group,2,FALSE)),2) -> 644.85 | AL103: =IF(VLOOKUP(AG103,Group,5,FALSE)="YES",VLOOKUP(ROUND(ROUND(AK103,1)-AK103,2),Round,2,FALSE)+VLOOKUP(AG103,Group,6,FALSE),0) -> 0 | AM103: =IF(VLOOKUP(AG103,Group,7,FALSE)="",0,ROUND(AK103-0.04999,1)-AK103+AN103) -> 0 | AN103: =IF(VLOOKUP(AG103,Group,7,FALSE)="","",VLOOKUP(AG103,Group,7,FALSE)) ->  | AP103: X
B104: Non-Stock Pans | E104: 39-3/8" x 39-3/8" | G104: 21206 | K104: TrueDEK Linear Base | S104: a | T104: =IF(Suggested="Yes",AB104,AH104) -> 651.85 | U104: EA | V104: =+Instructions!$B$3 -> N | X104: =+Instructions!$C$22 -> 0 | Y104: =ROUND($AB104*(1-X104)+0.004999,2) -> 651.85 | AB104: 651.85 | AC104: 0 | AD104: 651.85 | AE104: =(AH104-AD104)/AH104 -> 0 | AG104: 2 | AH104: =SUM(AK104:AM104)+AF104 -> 651.85 | AK104: =ROUND(AD104/(1-VLOOKUP(AG104,Group,2,FALSE)),2) -> 651.85 | AL104: =IF(VLOOKUP(AG104,Group,5,FALSE)="YES",VLOOKUP(ROUND(ROUND(AK104,1)-AK104,2),Round,2,FALSE)+VLOOKUP(AG104,Group,6,FALSE),0) -> 0 | AM104: =IF(VLOOKUP(AG104,Group,7,FALSE)="",0,ROUND(AK104-0.04999,1)-AK104+AN104) -> 0 | AN104: =IF(VLOOKUP(AG104,Group,7,FALSE)="","",VLOOKUP(AG104,Group,7,FALSE)) ->  | AP104: X
B105: Non-Stock Pans | E105: 51-1/4" x 32-1/4" | G105: 21207 | K105: TrueDEK Linear Base | S105: a | T105: =IF(Suggested="Yes",AB105,AH105) -> 653.6 | U105: EA | V105: =+Instructions!$B$3 -> N | X105: =+Instructions!$C$22 -> 0 | Y105: =ROUND($AB105*(1-X105)+0.004999,2) -> 653.6 | AB105: 653.6 | AC105: 0 | AD105: 653.6 | AE105: =(AH105-AD105)/AH105 -> 0 | AG105: 2 | AH105: =SUM(AK105:AM105)+AF105 -> 653.6 | AK105: =ROUND(AD105/(1-VLOOKUP(AG105,Group,2,FALSE)),2) -> 653.6 | AL105: =IF(VLOOKUP(AG105,Group,5,FALSE)="YES",VLOOKUP(ROUND(ROUND(AK105,1)-AK105,2),Round,2,FALSE)+VLOOKUP(AG105,Group,6,FALSE),0) -> 0 | AM105: =IF(VLOOKUP(AG105,Group,7,FALSE)="",0,ROUND(AK105-0.04999,1)-AK105+AN105) -> 0 | AN105: =IF(VLOOKUP(AG105,Group,7,FALSE)="","",VLOOKUP(AG105,Group,7,FALSE)) ->  | AP105: X
B106: Non-Stock Pans | E106: 47-1/4" x 47-1/4" | G106: 21208 | K106: TrueDEK Linear Base | S106: a | T106: =IF(Suggested="Yes",AB106,AH106) -> 664.1 | U106: EA | V106: =+Instructions!$B$3 -> N | X106: =+Instructions!$C$22 -> 0 | Y106: =ROUND($AB106*(1-X106)+0.004999,2) -> 664.1 | AB106: 664.1 | AC106: =+X106 -> 0 | AD106: =+Y106 -> 664.1 | AE106: =(AH106-AD106)/AH106 -> 0 | AG106: 2 | AH106: =SUM(AK106:AM106)+AF106 -> 664.1 | AK106: =ROUND(AD106/(1-VLOOKUP(AG106,Group,2,FALSE)),2) -> 664.1 | AL106: =IF(VLOOKUP(AG106,Group,5,FALSE)="YES",VLOOKUP(ROUND(ROUND(AK106,1)-AK106,2),Round,2,FALSE)+VLOOKUP(AG106,Group,6,FALSE),0) -> 0 | AM106: =IF(VLOOKUP(AG106,Group,7,FALSE)="",0,ROUND(AK106-0.04999,1)-AK106+AN106) -> 0 | AN106: =IF(VLOOKUP(AG106,Group,7,FALSE)="","",VLOOKUP(AG106,Group,7,FALSE)) ->  | AP106: X
AP107: X
B108: Non-Stock Pans | E108: 72" x 48" | G108: 21240 | K108: TrueDEK Ultimate Linear Base | T108: =IF(Suggested="Yes",AB108,AH108) -> 814.4 | U108: EA | V108: =+Instructions!$B$3 -> N | X108: =+Instructions!$C$22 -> 0 | Y108: =ROUND($AB108*(1-X108)+0.004999,2) -> 814.4 | AB108: 814.4 | AC108: =+X108 -> 0 | AD108: =+Y108 -> 814.4 | AE108: =(AH108-AD108)/AH108 -> 0 | AG108: 2 | AH108: =SUM(AK108:AM108)+AF108 -> 814.4 | AK108: =ROUND(AD108/(1-VLOOKUP(AG108,Group,2,FALSE)),2) -> 814.4 | AL108: =IF(VLOOKUP(AG108,Group,5,FALSE)="YES",VLOOKUP(ROUND(ROUND(AK108,1)-AK108,2),Round,2,FALSE)+VLOOKUP(AG108,Group,6,FALSE),0) -> 0 | AM108: =IF(VLOOKUP(AG108,Group,7,FALSE)="",0,ROUND(AK108-0.04999,1)-AK108+AN108) -> 0 | AN108: =IF(VLOOKUP(AG108,Group,7,FALSE)="","",VLOOKUP(AG108,Group,7,FALSE)) ->  | AP108: X
AP109: X
B110: Non-Stock Pans | E110: 1/4" x 47-1/4" | G110: 21241R | K110: TrueDEK Ultimate Linear S. S. Edge Trim 1/4" Tile RH | T110: =IF(Suggested="Yes",AB110,AH110) -> 32.6 | U110: EA | V110: =+Instructions!$B$3 -> N | X110: =+Instructions!$C$22 -> 0 | Y110: =ROUND($AB110*(1-X110)+0.004999,2) -> 32.6 | AA110: new | AB110: 32.6 | AC110: =+X110 -> 0 | AD110: =+Y110 -> 32.6 | AE110: =(AH110-AD110)/AH110 -> 0 | AG110: 2 | AH110: =SUM(AK110:AM110)+AF110 -> 32.6 | AK110: =ROUND(AD110/(1-VLOOKUP(AG110,Group,2,FALSE)),2) -> 32.6 | AL110: =IF(VLOOKUP(AG110,Group,5,FALSE)="YES",VLOOKUP(ROUND(ROUND(AK110,1)-AK110,2),Round,2,FALSE)+VLOOKUP(AG110,Group,6,FALSE),0) -> 0 | AM110: =IF(VLOOKUP(AG110,Group,7,FALSE)="",0,ROUND(AK110-0.04999,1)-AK110+AN110) -> 0 | AN110: =IF(VLOOKUP(AG110,Group,7,FALSE)="","",VLOOKUP(AG110,Group,7,FALSE)) ->  | AP110: X
B111: Non-Stock Pans | E111: 1/4" x 47-1/4" | G111: 21241L | K111: TrueDEK Ultimate Linear S. S. Edge Trim 1/4" Tile LH | T111: 32.6 | U111: EA | V111: =+Instructions!$B$3 -> N | X111: =+Instructions!$C$22 -> 0 | Y111: 32.6 | AA111: new | AB111: 32.6 | AC111: 0 | AD111: 32.6 | AE111: 0 | AG111: 2 | AH111: 32.6 | AK111: 32.6 | AL111: 0 | AM111: 0 | AP111: X
B112: Non-Stock Pans | E112: 3/8" x 47-1/4" | G112: 21242R | K112: TrueDEK Ultimate Linear S. S. Edge Trim 3/8" Tile RH | T112: 35.4 | U112: EA | V112: =+Instructions!$B$3 -> N | X112: =+Instructions!$C$22 -> 0 | Y112: 35.4 | AA112: new | AB112: 35.4 | AC112: 0 | AD112: 35.4 | AE112: 0 | AG112: 2 | AH112: 35.4 | AK112: 35.4 | AL112: 0 | AM112: 0 | AP112: X
B113: Non-Stock Pans | E113: 3/8" x 47-1/4" | G113: 21242L | K113: TrueDEK Ultimate Linear S. S. Edge Trim 3/8" Tile LH | T113: =IF(Suggested="Yes",AB113,AH113) -> 35.4 | U113: EA | V113: =+Instructions!$B$3 -> N | X113: =+Instructions!$C$22 -> 0 | Y113: =ROUND($AB113*(1-X113)+0.004999,2) -> 35.4 | AA113: new | AB113: 35.4 | AC113: =+X113 -> 0 | AD113: =+Y113 -> 35.4 | AE113: =(AH113-AD113)/AH113 -> 0 | AG113: 2 | AH113: =SUM(AK113:AM113)+AF113 -> 35.4 | AK113: =ROUND(AD113/(1-VLOOKUP(AG113,Group,2,FALSE)),2) -> 35.4 | AL113: =IF(VLOOKUP(AG113,Group,5,FALSE)="YES",VLOOKUP(ROUND(ROUND(AK113,1)-AK113,2),Round,2,FALSE)+VLOOKUP(AG113,Group,6,FALSE),0) -> 0 | AM113: =IF(VLOOKUP(AG113,Group,7,FALSE)="",0,ROUND(AK113-0.04999,1)-AK113+AN113) -> 0 | AN113: =IF(VLOOKUP(AG113,Group,7,FALSE)="","",VLOOKUP(AG113,Group,7,FALSE)) ->  | AP113: X
B114: Non-Stock Pans | E114: 1/2" x 47-1/4" | G114: 21243R | K114: TrueDEK Ultimate Linear S. S. Edge Trim 1/2" Tile RH | T114: =IF(Suggested="Yes",AB114,AH114) -> 39.5 | U114: EA | V114: =+Instructions!$B$3 -> N | X114: =+Instructions!$C$22 -> 0 | Y114: =ROUND($AB114*(1-X114)+0.004999,2) -> 39.5 | AA114: new | AB114: 39.5 | AC114: =+X114 -> 0 | AD114: =+Y114 -> 39.5 | AE114: =(AH114-AD114)/AH114 -> 0 | AG114: 2 | AH114: =SUM(AK114:AM114)+AF114 -> 39.5 | AK114: =ROUND(AD114/(1-VLOOKUP(AG114,Group,2,FALSE)),2) -> 39.5 | AL114: =IF(VLOOKUP(AG114,Group,5,FALSE)="YES",VLOOKUP(ROUND(ROUND(AK114,1)-AK114,2),Round,2,FALSE)+VLOOKUP(AG114,Group,6,FALSE),0) -> 0 | AM114: =IF(VLOOKUP(AG114,Group,7,FALSE)="",0,ROUND(AK114-0.04999,1)-AK114+AN114) -> 0 | AN114: =IF(VLOOKUP(AG114,Group,7,FALSE)="","",VLOOKUP(AG114,Group,7,FALSE)) ->  | AP114: X
B115: Non-Stock Pans | E115: 1/2" x 47-1/4" | G115: 21243L | K115: TrueDEK Ultimate Linear S. S. Edge Trim 1/2" Tile LH | T115: =IF(Suggested="Yes",AB115,AH115) -> 39.5 | U115: EA | V115: =+Instructions!$B$3 -> N | X115: =+Instructions!$C$22 -> 0 | Y115: =ROUND($AB115*(1-X115)+0.004999,2) -> 39.5 | AA115: new | AB115: 39.5 | AC115: =+X115 -> 0 | AD115: =+Y115 -> 39.5 | AE115: =(AH115-AD115)/AH115 -> 0 | AG115: 2 | AH115: =SUM(AK115:AM115)+AF115 -> 39.5 | AK115: =ROUND(AD115/(1-VLOOKUP(AG115,Group,2,FALSE)),2) -> 39.5 | AL115: =IF(VLOOKUP(AG115,Group,5,FALSE)="YES",VLOOKUP(ROUND(ROUND(AK115,1)-AK115,2),Round,2,FALSE)+VLOOKUP(AG115,Group,6,FALSE),0) -> 0 | AM115: =IF(VLOOKUP(AG115,Group,7,FALSE)="",0,ROUND(AK115-0.04999,1)-AK115+AN115) -> 0 | AN115: =IF(VLOOKUP(AG115,Group,7,FALSE)="","",VLOOKUP(AG115,Group,7,FALSE)) ->  | AP115: X
AP116: X
B117: Stocked Pans | E117: 12" x 60" | G117: TB6012-PXT | K117: TruePITCH Extension | R117: Stock | T117: =IF(Suggested="Yes",AB117,AH117) -> 83.3 | U117: EA | V117: =+Instructions!$B$3 -> N | X117: =+Instructions!$C$22 -> 0 | Y117: =ROUND($AB117*(1-X117)+0.004999,2) -> 83.3 | AA117: new | AB117: 83.3 | AC117: =+X117 -> 0 | AD117: =+Y117 -> 83.3 | AE117: =(AH117-AD117)/AH117 -> 0 | AG117: 1 | AH117: =SUM(AK117:AM117)+AF117 -> 83.3 | AK117: =ROUND(AD117/(1-VLOOKUP(AG117,Group,2,FALSE)),2) -> 83.3 | AL117: =IF(VLOOKUP(AG117,Group,5,FALSE)="YES",VLOOKUP(ROUND(ROUND(AK117,1)-AK117,2),Round,2,FALSE)+VLOOKUP(AG117,Group,6,FALSE),0) -> 0 | AM117: =IF(VLOOKUP(AG117,Group,7,FALSE)="",0,ROUND(AK117-0.04999,1)-AK117+AN117) -> 0 | AN117: =IF(VLOOKUP(AG117,Group,7,FALSE)="","",VLOOKUP(AG117,Group,7,FALSE)) ->  | AP117: X
AP118: X
B119: Non-Stock Pans | G119: 21213 | K119: Linear Drain Assy. w/ Brushed Stainless Steel Solid Cover | S119: b | T119: =IF(Suggested="Yes",AB119,AH119) -> 314.8 | U119: EA | V119: =+Instructions!$B$3 -> N | X119: =+Instructions!$C$22 -> 0 | Y119: =ROUND($AB119*(1-X119)+0.004999,2) -> 314.8 | AB119: 314.8 | AC119: =+X119 -> 0 | AD119: 314.8 | AE119: =(AH119-AD119)/AH119 -> 0 | AG119: 2 | AH119: =SUM(AK119:AM119)+AF119 -> 314.8 | AK119: =ROUND(AD119/(1-VLOOKUP(AG119,Group,2,FALSE)),2) -> 314.8 | AL119: =IF(VLOOKUP(AG119,Group,5,FALSE)="YES",VLOOKUP(ROUND(ROUND(AK119,1)-AK119,2),Round,2,FALSE)+VLOOKUP(AG119,Group,6,FALSE),0) -> 0 | AM119: =IF(VLOOKUP(AG119,Group,7,FALSE)="",0,ROUND(AK119-0.04999,1)-AK119+AN119) -> 0 | AN119: =IF(VLOOKUP(AG119,Group,7,FALSE)="","",VLOOKUP(AG119,Group,7,FALSE)) ->  | AP119: X
B120: Non-Stock Pans | G120: 21213-BK | K120: Linear Drain Assy. w/ Matte Black Solid Cover | S120: b | T120: 350.8 | U120: EA | V120: =+Instructions!$B$3 -> N | X120: =+Instructions!$C$22 -> 0 | Y120: 350.8 | AB120: 350.8 | AC120: 0 | AD120: 350.8 | AE120: 0 | AG120: 2 | AH120: 350.8 | AK120: 350.8 | AL120: 0 | AM120: 0 | AP120: X
B121: Non-Stock Pans | G121: 21213-ORB | K121: Linear Drain Assy. w/ Oil-Rubbed Bronze Solid Cover | S121: b | T121: 350.8 | U121: EA | V121: =+Instructions!$B$3 -> N | X121: =+Instructions!$C$22 -> 0 | Y121: 350.8 | AB121: 350.8 | AC121: 0 | AD121: 350.8 | AE121: 0 | AG121: 2 | AH121: 350.8 | AK121: 350.8 | AL121: 0 | AM121: 0 | AP121: X
B122: Non-Stock Pans | G122: 21215 | K122: Linear Drain Assy. w/ Brushed Stainless Steel Slotted Cover | S122: b | T122: 314.8 | U122: EA | V122: =+Instructions!$B$3 -> N | X122: =+Instructions!$C$22 -> 0 | Y122: 314.8 | AB122: 314.8 | AC122: 0 | AD122: 314.8 | AE122: 0 | AG122: 2 | AH122: 314.8 | AK122: 314.8 | AL122: 0 | AM122: 0 | AP122: X
B123: Non-Stock Pans | G123: 21215-BK | K123: Linear Drain Assy. w/ Matte Black Slotted Cover | S123: b | T123: 350.8 | U123: EA | V123: =+Instructions!$B$3 -> N | X123: =+Instructions!$C$22 -> 0 | Y123: 350.8 | AB123: 350.8 | AC123: 0 | AD123: 350.8 | AE123: 0 | AG123: 2 | AH123: 350.8 | AK123: 350.8 | AL123: 0 | AM123: 0 | AP123: X
B124: Non-Stock Pans | G124: 21215-ORB | K124: Linear Drain Assy. w/ Oil-Rubbed Bronze Slotted Cover | S124: b | T124: 350.8 | U124: EA | V124: =+Instructions!$B$3 -> N | X124: =+Instructions!$C$22 -> 0 | Y124: 350.8 | AB124: 350.8 | AC124: 0 | AD124: 350.8 | AE124: 0 | AG124: 2 | AH124: 350.8 | AK124: 350.8 | AL124: 0 | AM124: 0 | AP124: X
AP125: X
B126: Non-Stock Pans | E126: 59" x 35-1/2" | G126: 21210 | K126: TrueDEK Linear Base (Tub Replacement Base) | S126: a,c | T126: =IF(Suggested="Yes",AB126,AH126) -> 658.85 | U126: EA | V126: =+Instructions!$B$3 -> N | X126: =+Instructions!$C$22 -> 0 | Y126: =ROUND($AB126*(1-X126)+0.004999,2) -> 658.85 | AB126: 658.85 | AC126: =+X126 -> 0 | AD126: =+Y126 -> 658.85 | AE126: =(AH126-AD126)/AH126 -> 0 | AG126: 2 | AH126: =SUM(AK126:AM126)+AF126 -> 658.85 | AK126: =ROUND(AD126/(1-VLOOKUP(AG126,Group,2,FALSE)),2) -> 658.85 | AL126: =IF(VLOOKUP(AG126,Group,5,FALSE)="YES",VLOOKUP(ROUND(ROUND(AK126,1)-AK126,2),Round,2,FALSE)+VLOOKUP(AG126,Group,6,FALSE),0) -> 0 | AM126: =IF(VLOOKUP(AG126,Group,7,FALSE)="",0,ROUND(AK126-0.04999,1)-AK126+AN126) -> 0 | AN126: =IF(VLOOKUP(AG126,Group,7,FALSE)="","",VLOOKUP(AG126,Group,7,FALSE)) ->  | AP126: X
AP127: X
B128: Non-Stock Pans | G128: 21211 | K128: Linear Drain Assy. w/ Brushed Stainless Steel Solid Cover | S128: d | T128: =IF(Suggested="Yes",AB128,AH128) -> 314.8 | U128: EA | V128: =+Instructions!$B$3 -> N | X128: =+Instructions!$C$22 -> 0 | Y128: =ROUND($AB128*(1-X128)+0.004999,2) -> 314.8 | AB128: 314.8 | AC128: =+X128 -> 0 | AD128: 314.8 | AE128: =(AH128-AD128)/AH128 -> 0 | AG128: 2 | AH128: =SUM(AK128:AM128)+AF128 -> 314.8 | AK128: =ROUND(AD128/(1-VLOOKUP(AG128,Group,2,FALSE)),2) -> 314.8 | AL128: =IF(VLOOKUP(AG128,Group,5,FALSE)="YES",VLOOKUP(ROUND(ROUND(AK128,1)-AK128,2),Round,2,FALSE)+VLOOKUP(AG128,Group,6,FALSE),0) -> 0 | AM128: =IF(VLOOKUP(AG128,Group,7,FALSE)="",0,ROUND(AK128-0.04999,1)-AK128+AN128) -> 0 | AN128: =IF(VLOOKUP(AG128,Group,7,FALSE)="","",VLOOKUP(AG128,Group,7,FALSE)) ->  | AP128: X
B129: Non-Stock Pans | G129: 21211-BK | K129: Linear Drain Assy. w/ Matte Black Solid Cover | S129: d | T129: 350.8 | U129: EA | V129: =+Instructions!$B$3 -> N | X129: =+Instructions!$C$22 -> 0 | Y129: 350.8 | AB129: 350.8 | AC129: 0 | AD129: 350.8 | AE129: 0 | AG129: 2 | AH129: 350.8 | AK129: 350.8 | AL129: 0 | AM129: 0 | AP129: X
B130: Non-Stock Pans | G130: 21211-ORB | K130: Linear Drain Assy. w/ Oil-Rubbed Bronze Solid Cover | S130: d | T130: 350.8 | U130: EA | V130: =+Instructions!$B$3 -> N | X130: =+Instructions!$C$22 -> 0 | Y130: 350.8 | AB130: 350.8 | AC130: 0 | AD130: 350.8 | AE130: 0 | AG130: 2 | AH130: 350.8 | AK130: 350.8 | AL130: 0 | AM130: 0 | AP130: X
B131: Non-Stock Pans | G131: 21228 | K131: Linear Drain Assy. w/ Brushed Stainless Steel Slotted Cover | S131: d | T131: 314.8 | U131: EA | V131: =+Instructions!$B$3 -> N | X131: =+Instructions!$C$22 -> 0 | Y131: 314.8 | AB131: 314.8 | AC131: 0 | AD131: 314.8 | AE131: 0 | AG131: 2 | AH131: 314.8 | AK131: 314.8 | AL131: 0 | AM131: 0 | AP131: X
B132: Non-Stock Pans | G132: 21228-BK | K132: Linear Drain Assy. w/ Matte Black Slotted Cover | S132: d | T132: 350.8 | U132: EA | V132: =+Instructions!$B$3 -> N | X132: =+Instructions!$C$22 -> 0 | Y132: 350.8 | AB132: 350.8 | AC132: 0 | AD132: 350.8 | AE132: 0 | AG132: 2 | AH132: 350.8 | AK132: 350.8 | AL132: 0 | AM132: 0 | AP132: X
B133: Non-Stock Pans | G133: 21228-ORB | K133: Linear Drain Assy. w/ Oil-Rubbed Bronze Slotted Cover | S133: d | T133: 350.8 | U133: EA | V133: =+Instructions!$B$3 -> N | X133: =+Instructions!$C$22 -> 0 | Y133: 350.8 | AB133: 350.8 | AC133: 0 | AD133: 350.8 | AE133: 0 | AG133: 2 | AH133: 350.8 | AK133: 350.8 | AL133: 0 | AM133: 0 | AP133: X
AP134: X
B135: Non-Stock Pans | G135: DC5500-PVC | K135: 2" PVC Drain Line Connector | T135: =IF(Suggested="Yes",AB135,AH135) -> 17.95 | U135: EA | V135: =+Instructions!$B$3 -> N | X135: =+Instructions!$C$22 -> 0 | Y135: =ROUND($AB135*(1-X135)+0.004999,2) -> 17.95 | AB135: 17.95 | AC135: =+X135 -> 0 | AD135: =+Y135 -> 17.95 | AE135: =(AH135-AD135)/AH135 -> 0 | AG135: 2 | AH135: =SUM(AK135:AM135)+AF135 -> 17.95 | AK135: =ROUND(AD135/(1-VLOOKUP(AG135,Group,2,FALSE)),2) -> 17.95 | AL135: =IF(VLOOKUP(AG135,Group,5,FALSE)="YES",VLOOKUP(ROUND(ROUND(AK135,1)-AK135,2),Round,2,FALSE)+VLOOKUP(AG135,Group,6,FALSE),0) -> 0 | AM135: =IF(VLOOKUP(AG135,Group,7,FALSE)="",0,ROUND(AK135-0.04999,1)-AK135+AN135) -> 0 | AN135: =IF(VLOOKUP(AG135,Group,7,FALSE)="","",VLOOKUP(AG135,Group,7,FALSE)) ->  | AP135: X
AP136: X
D137: Notes: | E137: Each assembly includes DC5500-PVC 2" PVC Drain line connector. | AP137: X
E138: a) Accommodates up to three 2" wastes. | AP138: X
E139: b) Only compatible with the #21205, 21206, 21207 & 21208 TrueDEK Linear Shower Bases. Covers can be flipped over and | AP139: X
E140: filled with tile. Can adjust elevations of cover & tile spacer to match surrounding tile thickness. | AP140: X
E141: c) Composed from the same structural, lightweight materials as our TrueDEK Classic and TrueDEK Classic8 bases – fiberglass | AP141: X
E142: reinforced plastic (GRP) – this incredibly durable shower base can be trimmed to size on site, if required. | AP142: X
E143: d) Only compatible with the 21210 59" x 35-1/2" TrueDEK Linear Base. | AP143: X
C145: FastDEK Shower Bases | S145: Item # Lookup: | T145: AKFD | AP145: X
AP146: X
D147: - Prefinished with an attractive anti-slip texture. (No Tile)
D148: - At a thickness of 1", each FastDEK is structural and can be installed directly onto code-approved joist systems, on subfloor, and on concrete.
D149: - It will support 840 lbs. when installed on 16" on-center joists, and that load rating can be increased by beefing up the underlying framework.
AP150: X
B151: Non-Stock Pans | E151: 47-1/4" x 31-1/2" | G151: 11854 | K151: FastDEK Base - Black | T151: =IF(Suggested="Yes",AB151,AH151) -> 574.4 | U151: EA | V151: =+Instructions!$B$3 -> N | X151: =+Instructions!$C$22 -> 0 | Y151: =ROUND($AB151*(1-X151)+0.004999,2) -> 574.4 | AB151: 574.4 | AC151: =+X151 -> 0 | AD151: =+Y151 -> 574.4 | AE151: =(AH151-AD151)/AH151 -> 0 | AG151: 2 | AH151: =SUM(AK151:AM151)+AF151 -> 574.4 | AK151: =ROUND(AD151/(1-VLOOKUP(AG151,Group,2,FALSE)),2) -> 574.4 | AL151: =IF(VLOOKUP(AG151,Group,5,FALSE)="YES",VLOOKUP(ROUND(ROUND(AK151,1)-AK151,2),Round,2,FALSE)+VLOOKUP(AG151,Group,6,FALSE),0) -> 0 | AM151: =IF(VLOOKUP(AG151,Group,7,FALSE)="",0,ROUND(AK151-0.04999,1)-AK151+AN151) -> 0 | AN151: =IF(VLOOKUP(AG151,Group,7,FALSE)="","",VLOOKUP(AG151,Group,7,FALSE)) ->  | AP151: X
B152: Non-Stock Pans | E152: 47-1/4" x 31-1/2" | G152: 11876 | K152: FastDEK Base - Gray | T152: 574.4 | U152: EA | V152: =+Instructions!$B$3 -> N | X152: =+Instructions!$C$22 -> 0 | Y152: 574.4 | AB152: 574.4 | AC152: 0 | AD152: 574.4 | AE152: 0 | AG152: 2 | AH152: 574.4 | AK152: 574.4 | AL152: 0 | AM152: 0 | AP152: X
B153: Non-Stock Pans | E153: 47-1/4" x 31-1/2" | G153: 11853 | K153: FastDEK Base - White | T153: 574.4 | U153: EA | V153: =+Instructions!$B$3 -> N | X153: =+Instructions!$C$22 -> 0 | Y153: 574.4 | AB153: 574.4 | AC153: 0 | AD153: 574.4 | AE153: 0 | AG153: 2 | AH153: 574.4 | AK153: 574.4 | AL153: 0 | AM153: 0 | AP153: X
B154: Non-Stock Pans | E154: 47-1/4" x 35-1/2" | G154: 11856 | K154: FastDEK Base - Black | T154: 579.65 | U154: EA | V154: =+Instructions!$B$3 -> N | X154: =+Instructions!$C$22 -> 0 | Y154: 579.65 | AB154: 579.65 | AC154: 0 | AD154: 579.65 | AE154: 0 | AG154: 2 | AH154: 579.65 | AK154: 579.65 | AL154: 0 | AM154: 0 | AP154: X
B155: Non-Stock Pans | E155: 47-1/4" x 35-1/2" | G155: 11877 | K155: FastDEK Base - Gray | T155: 579.65 | U155: EA | V155: =+Instructions!$B$3 -> N | X155: =+Instructions!$C$22 -> 0 | Y155: 579.65 | AB155: 579.65 | AC155: 0 | AD155: 579.65 | AE155: 0 | AG155: 2 | AH155: 579.65 | AK155: 579.65 | AL155: 0 | AM155: 0 | AP155: X
B156: Non-Stock Pans | E156: 47-1/4" x 35-1/2" | G156: 11855 | K156: FastDEK Base - White | T156: 579.65 | U156: EA | V156: =+Instructions!$B$3 -> N | X156: =+Instructions!$C$22 -> 0 | Y156: 579.65 | AB156: 579.65 | AC156: 0 | AD156: 579.65 | AE156: 0 | AG156: 2 | AH156: 579.65 | AK156: 579.65 | AL156: 0 | AM156: 0 | AP156: X
B157: Non-Stock Pans | E157: 59" x 35-1/2" | G157: 12839WH | K157: FastDEK Base - White | T157: 625.35 | U157: EA | V157: =+Instructions!$B$3 -> N | X157: =+Instructions!$C$22 -> 0 | Y157: 625.35 | AA157: new | AB157: 625.35 | AC157: 0 | AD157: 625.35 | AE157: 0 | AG157: 2 | AH157: 625.35 | AK157: 625.35 | AL157: 0 | AM157: 0 | AP157: X
B158: Non-Stock Pans | E158: 63" x 31-1/2" | G158: 11858 | K158: FastDEK Base - Black | T158: 627.1 | U158: EA | V158: =+Instructions!$B$3 -> N | X158: =+Instructions!$C$22 -> 0 | Y158: 627.1 | AB158: 627.1 | AC158: 0 | AD158: 627.1 | AE158: 0 | AG158: 2 | AH158: 627.1 | AK158: 627.1 | AL158: 0 | AM158: 0 | AP158: X
B159: Non-Stock Pans | E159: 63" x 31-1/2" | G159: 11880 | K159: FastDEK Base - Gray | T159: 627.1 | U159: EA | V159: =+Instructions!$B$3 -> N | X159: =+Instructions!$C$22 -> 0 | Y159: 627.1 | AB159: 627.1 | AC159: 0 | AD159: 627.1 | AE159: 0 | AG159: 2 | AH159: 627.1 | AK159: 627.1 | AL159: 0 | AM159: 0 | AP159: X
B160: Non-Stock Pans | E160: 63" x 31-1/2" | G160: 11857 | K160: FastDEK Base - White | T160: 627.1 | U160: EA | V160: =+Instructions!$B$3 -> N | X160: =+Instructions!$C$22 -> 0 | Y160: 627.1 | AB160: 627.1 | AC160: 0 | AD160: 627.1 | AE160: 0 | AG160: 2 | AH160: 627.1 | AK160: 627.1 | AL160: 0 | AM160: 0 | AP160: X
B161: Non-Stock Pans | E161: 63" x 35-1/2" | G161: 11860 | K161: FastDEK Base - Black | T161: 634.1 | U161: EA | V161: =+Instructions!$B$3 -> N | X161: =+Instructions!$C$22 -> 0 | Y161: =ROUND($AB161*(1-X161)+0.004999,2) -> 634.1 | AB161: 634.1 | AC161: 0 | AD161: 634.1 | AE161: 0 | AG161: 2 | AH161: 634.1 | AK161: 634.1 | AL161: 0 | AM161: 0 | AP161: X
B162: Non-Stock Pans | E162: 63" x 35-1/2" | G162: 11881 | K162: FastDEK Base - Gray | T162: 634.1 | U162: EA | V162: =+Instructions!$B$3 -> N | X162: =+Instructions!$C$22 -> 0 | Y162: 634.1 | AB162: 634.1 | AC162: 0 | AD162: 634.1 | AE162: 0 | AG162: 2 | AH162: 634.1 | AK162: 634.1 | AL162: 0 | AM162: 0 | AP162: X
B163: Non-Stock Pans | E163: 63" x 35-1/2" | G163: 11859 | K163: FastDEK Base - White | T163: 634.1 | U163: EA | V163: =+Instructions!$B$3 -> N | X163: =+Instructions!$C$22 -> 0 | Y163: 634.1 | AB163: 634.1 | AC163: 0 | AD163: 634.1 | AE163: 0 | AG163: 2 | AH163: 634.1 | AK163: 634.1 | AL163: 0 | AM163: 0 | AP163: X
B164: Non-Stock Pans | E164: 71" x 31-1/2" | G164: 11866 | K164: FastDEK Base - Black | T164: =IF(Suggested="Yes",AB164,AH164) -> 673.7 | U164: EA | V164: =+Instructions!$B$3 -> N | X164: =+Instructions!$C$22 -> 0 | Y164: 673.7 | AB164: 673.7 | AC164: =+X164 -> 0 | AD164: =+Y164 -> 673.7 | AE164: =(AH164-AD164)/AH164 -> 0 | AG164: 2 | AH164: =SUM(AK164:AM164)+AF164 -> 673.7 | AK164: =ROUND(AD164/(1-VLOOKUP(AG164,Group,2,FALSE)),2) -> 673.7 | AL164: =IF(VLOOKUP(AG164,Group,5,FALSE)="YES",VLOOKUP(ROUND(ROUND(AK164,1)-AK164,2),Round,2,FALSE)+VLOOKUP(AG164,Group,6,FALSE),0) -> 0 | AM164: =IF(VLOOKUP(AG164,Group,7,FALSE)="",0,ROUND(AK164-0.04999,1)-AK164+AN164) -> 0 | AN164: =IF(VLOOKUP(AG164,Group,7,FALSE)="","",VLOOKUP(AG164,Group,7,FALSE)) ->  | AP164: X
B165: Non-Stock Pans | E165: 71" x 31-1/2" | G165: 11884 | K165: FastDEK Base - Gray | T165: 673.7 | U165: EA | V165: =+Instructions!$B$3 -> N | X165: =+Instructions!$C$22 -> 0 | Y165: 673.7 | AB165: 673.7 | AC165: 0 | AD165: 673.7 | AE165: 0 | AG165: 2 | AH165: 673.7 | AK165: 673.7 | AL165: 0 | AM165: 0 | AP165: X
B166: Non-Stock Pans | E166: 71" x 31-1/2" | G166: 11865 | K166: FastDEK Base - White | T166: 673.7 | U166: EA | V166: =+Instructions!$B$3 -> N | X166: =+Instructions!$C$22 -> 0 | Y166: 673.7 | AB166: 673.7 | AC166: 0 | AD166: 673.7 | AE166: 0 | AG166: 2 | AH166: 673.7 | AK166: 673.7 | AL166: 0 | AM166: 0 | AP166: X
B167: Non-Stock Pans | E167: 71" x 35-1/2" | G167: 11868 | K167: FastDEK Base - Black | T167: 680.7 | U167: EA | V167: =+Instructions!$B$3 -> N | X167: =+Instructions!$C$22 -> 0 | Y167: 680.7 | AB167: 680.7 | AC167: 0 | AD167: 680.7 | AE167: 0 | AG167: 2 | AH167: 680.7 | AK167: 680.7 | AL167: 0 | AM167: 0 | AP167: X
B168: Non-Stock Pans | E168: 71" x 35-1/2" | G168: 11885 | K168: FastDEK Base - Gray | T168: 680.7 | U168: EA | V168: =+Instructions!$B$3 -> N | X168: =+Instructions!$C$22 -> 0 | Y168: 680.7 | AB168: 680.7 | AC168: 0 | AD168: 680.7 | AE168: 0 | AG168: 2 | AH168: 680.7 | AK168: 680.7 | AL168: 0 | AM168: 0 | AP168: X
B169: Non-Stock Pans | E169: 71" x 35-1/2" | G169: 11867 | K169: FastDEK Base - White | T169: 680.7 | U169: EA | V169: =+Instructions!$B$3 -> N | X169: =+Instructions!$C$22 -> 0 | Y169: 680.7 | AB169: 680.7 | AC169: 0 | AD169: 680.7 | AE169: 0 | AG169: 2 | AH169: 680.7 | AK169: 680.7 | AL169: 0 | AM169: 0 | AP169: X
B170: Non-Stock Pans | E170: 78-3/4" x 39-3/8" | G170: 11894 | K170: FastDEK Base - White | T170: 977.95 | U170: EA | V170: =+Instructions!$B$3 -> N | X170: =+Instructions!$C$22 -> 0 | Y170: 977.95 | AA170: new | AB170: 977.95 | AC170: 0 | AD170: 977.95 | AE170: 0 | AG170: 2 | AH170: 977.95 | AK170: 977.95 | AL170: 0 | AM170: 0 | AP170: X
AP171: X
C172: continued on next page
C173: FastDEK Shower Bases - continued | S173: Item # Lookup: | T173: AKFD | AP173: X
AP174: X
B175: Non-Stock Pans | E175: 47-1/4" x 4-1/3" | G175: 12844 | K175: FastDEK Ramp - White | T175: =IF(Suggested="Yes",AB175,AH175) -> 64.95 | U175: EA | V175: =+Instructions!$B$3 -> N | X175: =+Instructions!$C$22 -> 0 | Y175: =ROUND($AB175*(1-X175)+0.004999,2) -> 64.95 | AA175: new | AB175: 64.95 | AC175: =+X175 -> 0 | AD175: =+Y175 -> 64.95 | AE175: =(AH175-AD175)/AH175 -> 0 | AG175: 2 | AH175: =SUM(AK175:AM175)+AF175 -> 64.95 | AK175: =ROUND(AD175/(1-VLOOKUP(AG175,Group,2,FALSE)),2) -> 64.95 | AL175: =IF(VLOOKUP(AG175,Group,5,FALSE)="YES",VLOOKUP(ROUND(ROUND(AK175,1)-AK175,2),Round,2,FALSE)+VLOOKUP(AG175,Group,6,FALSE),0) -> 0 | AM175: =IF(VLOOKUP(AG175,Group,7,FALSE)="",0,ROUND(AK175-0.04999,1)-AK175+AN175) -> 0 | AN175: =IF(VLOOKUP(AG175,Group,7,FALSE)="","",VLOOKUP(AG175,Group,7,FALSE)) ->  | AP175: X
B176: Non-Stock Pans | E176: 4-1/3" x 4-1/3" | G176: 12843 | K176: FastDEK Ramp Corner - White | T176: 6.35 | U176: EA | V176: =+Instructions!$B$3 -> N | X176: =+Instructions!$C$22 -> 0 | Y176: 6.35 | AA176: new | AB176: 6.35 | AC176: 0 | AD176: 6.35 | AE176: 0 | AG176: 2 | AH176: 6.35 | AK176: 6.35 | AL176: 0 | AM176: 0 | AP176: X
AP177: X
B178: Setting Materials | G178: FB1000-IK | K178: FastDEK Installation Kit | S178: a | T178: =IF(Suggested="Yes",AB178,AH178) -> 108.15 | U178: EA | V178: =+Instructions!$B$3 -> N | X178: =+Instructions!$C$22 -> 0 | Y178: =ROUND($AB178*(1-X178)+0.004999,2) -> 108.15 | AB178: 108.15 | AC178: =+X178 -> 0 | AD178: =+Y178 -> 108.15 | AE178: =(AH178-AD178)/AH178 -> 0 | AG178: 3 | AH178: =SUM(AK178:AM178)+AF178 -> 108.15 | AK178: =ROUND(AD178/(1-VLOOKUP(AG178,Group,2,FALSE)),2) -> 108.15 | AL178: =IF(VLOOKUP(AG178,Group,5,FALSE)="YES",VLOOKUP(ROUND(ROUND(AK178,1)-AK178,2),Round,2,FALSE)+VLOOKUP(AG178,Group,6,FALSE),0) -> 0 | AM178: =IF(VLOOKUP(AG178,Group,7,FALSE)="",0,ROUND(AK178-0.04999,1)-AK178+AN178) -> 0 | AN178: =IF(VLOOKUP(AG178,Group,7,FALSE)="","",VLOOKUP(AG178,Group,7,FALSE)) ->  | AP178: X
B179: Setting Materials | G179: FB2000-IK | K179: FastDEK Installation Kit | S179: b | T179: =IF(Suggested="Yes",AB179,AH179) -> 141.8 | U179: EA | V179: =+Instructions!$B$3 -> N | X179: =+Instructions!$C$22 -> 0 | Y179: =ROUND($AB179*(1-X179)+0.004999,2) -> 141.8 | AA179: new | AB179: 141.8 | AC179: =+X179 -> 0 | AD179: =+Y179 -> 141.8 | AE179: =(AH179-AD179)/AH179 -> 0 | AG179: 3 | AH179: =SUM(AK179:AM179)+AF179 -> 141.8 | AK179: =ROUND(AD179/(1-VLOOKUP(AG179,Group,2,FALSE)),2) -> 141.8 | AL179: =IF(VLOOKUP(AG179,Group,5,FALSE)="YES",VLOOKUP(ROUND(ROUND(AK179,1)-AK179,2),Round,2,FALSE)+VLOOKUP(AG179,Group,6,FALSE),0) -> 0 | AM179: =IF(VLOOKUP(AG179,Group,7,FALSE)="",0,ROUND(AK179-0.04999,1)-AK179+AN179) -> 0 | AN179: =IF(VLOOKUP(AG179,Group,7,FALSE)="","",VLOOKUP(AG179,Group,7,FALSE)) ->  | AP179: X
AP180: X
D181: Notes: | E181: a) FastDEK Installation Kit includes: | J181: 6 - 10 oz. tubes of Tank/10 Polyurethane Construction Adhesive | AP181: X
J182: 2 - 10 oz. tubes of 100% Silicone Caulk | AP182: X
J183: 1 - 20' Roll of Joint Reinforcement Tape w/adhesive strip along one edge | AP183: X
J184: 1 - Drain Connector | AP184: X
E185: b) FastDEK Installation Kit includes: | J185: 6 - 10 oz. tubes of Tank/10 Polyurethane Construction Adhesive | AP185: X
J186: 2 - 10 oz. tubes of 100% Silicone Caulk | AP186: X
J187: 1 - 20' Roll of Joint Reinforcement Tape w/adhesive strip along one edge | AP187: X
J188: 1 - Drain Connector 1 - 1/2 Gal. Tank/10 Waterproofing Compound | AP188: X
C190: FastDEK Linear Shower Bases | S190: Item # Lookup: | T190: AKFD | AP190: X
AP191: X
D192: - Stylish, linear drain cover - Superior strength with 546lb maximum capacity - White, Stone effect, slip-resistant finish
AP193: X
B194: Non-Stock Pans | E194: 47-1/4" x 35-1/2" | G194: 23964-WH | J194: FastDEK Linear Shower Base with 21-3/4" Stainless Steel Drain Cover | T194: =IF(Suggested="Yes",AB194,AH194) -> 619.25 | U194: EA | V194: =+Instructions!$B$3 -> N | X194: =+Instructions!$C$22 -> 0 | Y194: =ROUND($AB194*(1-X194)+0.004999,2) -> 619.25 | AB194: 619.25 | AC194: =+X194 -> 0 | AD194: 619.25 | AE194: =(AH194-AD194)/AH194 -> 0 | AG194: 2 | AH194: =SUM(AK194:AM194)+AF194 -> 619.25 | AK194: =ROUND(AD194/(1-VLOOKUP(AG194,Group,2,FALSE)),2) -> 619.25 | AL194: =IF(VLOOKUP(AG194,Group,5,FALSE)="YES",VLOOKUP(ROUND(ROUND(AK194,1)-AK194,2),Round,2,FALSE)+VLOOKUP(AG194,Group,6,FALSE),0) -> 0 | AM194: =IF(VLOOKUP(AG194,Group,7,FALSE)="",0,ROUND(AK194-0.04999,1)-AK194+AN194) -> 0 | AN194: =IF(VLOOKUP(AG194,Group,7,FALSE)="","",VLOOKUP(AG194,Group,7,FALSE)) ->  | AP194: X
B195: Non-Stock Pans | E195: 59" x 35-1/2" | G195: 23977-WH | J195: FastDEK Linear Shower Base with 25-1/3" Stainless Steel Drain Cover | T195: =IF(Suggested="Yes",AB195,AH195) -> 669.35 | U195: EA | V195: =+Instructions!$B$3 -> N | X195: =+Instructions!$C$22 -> 0 | Y195: =ROUND($AB195*(1-X195)+0.004999,2) -> 669.35 | AB195: 669.35 | AC195: 0 | AD195: 669.35 | AE195: =(AH195-AD195)/AH195 -> 0 | AG195: 2 | AH195: =SUM(AK195:AM195)+AF195 -> 669.35 | AK195: =ROUND(AD195/(1-VLOOKUP(AG195,Group,2,FALSE)),2) -> 669.35 | AL195: =IF(VLOOKUP(AG195,Group,5,FALSE)="YES",VLOOKUP(ROUND(ROUND(AK195,1)-AK195,2),Round,2,FALSE)+VLOOKUP(AG195,Group,6,FALSE),0) -> 0 | AM195: =IF(VLOOKUP(AG195,Group,7,FALSE)="",0,ROUND(AK195-0.04999,1)-AK195+AN195) -> 0 | AN195: =IF(VLOOKUP(AG195,Group,7,FALSE)="","",VLOOKUP(AG195,Group,7,FALSE)) ->  | AP195: X
B196: Non-Stock Pans | E196: 71" x 35-1/2" | G196: 23975-WH | J196: FastDEK Linear Shower Base with 29-1/2" Stainless Steel Drain Cover | T196: =IF(Suggested="Yes",AB196,AH196) -> 720.3 | U196: EA | V196: =+Instructions!$B$3 -> N | X196: =+Instructions!$C$22 -> 0 | Y196: =ROUND($AB196*(1-X196)+0.004999,2) -> 720.3 | AB196: 720.3 | AC196: 0 | AD196: 720.3 | AE196: =(AH196-AD196)/AH196 -> 0 | AG196: 2 | AH196: =SUM(AK196:AM196)+AF196 -> 720.3 | AK196: =ROUND(AD196/(1-VLOOKUP(AG196,Group,2,FALSE)),2) -> 720.3 | AL196: =IF(VLOOKUP(AG196,Group,5,FALSE)="YES",VLOOKUP(ROUND(ROUND(AK196,1)-AK196,2),Round,2,FALSE)+VLOOKUP(AG196,Group,6,FALSE),0) -> 0 | AM196: =IF(VLOOKUP(AG196,Group,7,FALSE)="",0,ROUND(AK196-0.04999,1)-AK196+AN196) -> 0 | AN196: =IF(VLOOKUP(AG196,Group,7,FALSE)="","",VLOOKUP(AG196,Group,7,FALSE)) ->  | AP196: X
AP197: X
B198: Non-Stock Pans | G198: 23957-WH | J198: Spare 21-3/4" Stainless Steel Drain Cover | T198: =IF(Suggested="Yes",AB198,AH198) -> 46.95 | U198: EA | V198: =+Instructions!$B$3 -> N | X198: =+Instructions!$C$22 -> 0 | Y198: =ROUND($AB198*(1-X198)+0.004999,2) -> 46.95 | AB198: 46.95 | AC198: =+X198 -> 0 | AD198: 46.95 | AE198: =(AH198-AD198)/AH198 -> 0 | AG198: 2 | AH198: =SUM(AK198:AM198)+AF198 -> 46.95 | AK198: =ROUND(AD198/(1-VLOOKUP(AG198,Group,2,FALSE)),2) -> 46.95 | AL198: =IF(VLOOKUP(AG198,Group,5,FALSE)="YES",VLOOKUP(ROUND(ROUND(AK198,1)-AK198,2),Round,2,FALSE)+VLOOKUP(AG198,Group,6,FALSE),0) -> 0 | AM198: =IF(VLOOKUP(AG198,Group,7,FALSE)="",0,ROUND(AK198-0.04999,1)-AK198+AN198) -> 0 | AN198: =IF(VLOOKUP(AG198,Group,7,FALSE)="","",VLOOKUP(AG198,Group,7,FALSE)) ->  | AP198: X
B199: Non-Stock Pans | G199: 23958-WH | J199: Spare 25-1/3" Stainless Steel Drain Cover | T199: =IF(Suggested="Yes",AB199,AH199) -> 52 | U199: EA | V199: =+Instructions!$B$3 -> N | X199: =+Instructions!$C$22 -> 0 | Y199: =ROUND($AB199*(1-X199)+0.004999,2) -> 52 | AB199: 52 | AC199: 0 | AD199: 52 | AE199: =(AH199-AD199)/AH199 -> 0 | AG199: 2 | AH199: =SUM(AK199:AM199)+AF199 -> 52 | AK199: =ROUND(AD199/(1-VLOOKUP(AG199,Group,2,FALSE)),2) -> 52 | AL199: =IF(VLOOKUP(AG199,Group,5,FALSE)="YES",VLOOKUP(ROUND(ROUND(AK199,1)-AK199,2),Round,2,FALSE)+VLOOKUP(AG199,Group,6,FALSE),0) -> 0 | AM199: =IF(VLOOKUP(AG199,Group,7,FALSE)="",0,ROUND(AK199-0.04999,1)-AK199+AN199) -> 0 | AN199: =IF(VLOOKUP(AG199,Group,7,FALSE)="","",VLOOKUP(AG199,Group,7,FALSE)) ->  | AP199: X
B200: Non-Stock Pans | G200: 23959-WH | J200: Spare 29-1/2" Stainless Steel Drain Cover | T200: =IF(Suggested="Yes",AB200,AH200) -> 59.2 | U200: EA | V200: =+Instructions!$B$3 -> N | X200: =+Instructions!$C$22 -> 0 | Y200: =ROUND($AB200*(1-X200)+0.004999,2) -> 59.2 | AB200: 59.2 | AC200: 0 | AD200: 59.2 | AE200: =(AH200-AD200)/AH200 -> 0 | AG200: 2 | AH200: =SUM(AK200:AM200)+AF200 -> 59.2 | AK200: =ROUND(AD200/(1-VLOOKUP(AG200,Group,2,FALSE)),2) -> 59.2 | AL200: =IF(VLOOKUP(AG200,Group,5,FALSE)="YES",VLOOKUP(ROUND(ROUND(AK200,1)-AK200,2),Round,2,FALSE)+VLOOKUP(AG200,Group,6,FALSE),0) -> 0 | AM200: =IF(VLOOKUP(AG200,Group,7,FALSE)="",0,ROUND(AK200-0.04999,1)-AK200+AN200) -> 0 | AN200: =IF(VLOOKUP(AG200,Group,7,FALSE)="","",VLOOKUP(AG200,Group,7,FALSE)) ->  | AP200: X
C202: FastDEK Standalone Shower Kits | S202: Item # Lookup: | T202: AKFD | AP202: X
AP203: X
D204: - Standalone shower complete with base, wall panels, glass screen and door
D205: - Contemporary yet practical, tempered glass duo door - Choice of 2 stylish wall panel colors
... 311 more rows

Sheet Websites
A1: Easy Access Website links
A3: ConestogaTile's Website | B3: www.conestogatile.com
A5: Manufacturer's Home Page | B5: http://arcfirst.net/
A8: Product | B8: Direct Website Link

Sheet Changes
A1: Date
A2: Announced | B2: Series | C2: Description
A4: New Products
A5: 2011-08-17 | B5: Wave Shower Pan w/Integrated Clamp
A6: 2011-08-17 | B6: Wave Shower Accessories
A7: 2012-05-08 | B7: Tuff-Form Installation Materials | C7: Standard Waterproofing Kits now available with Stainless Steel Grate (ARC565), Satin Brass Grate (ARC565SB) & Oil-Rubbed Bronze Grate (ARC565ORB).
A8: 2012-05-08 | B8: Tuff-Form Installation Materials | C8: Premium Waterproofing Kits now available, also with choice of Stainless Steel Grate (ARC566), Satin Brass Grate (ARC566SB) & Oil-Rubbed Bronze Grate (ARC566ORB).
A9: 2013-09-05 | B9: TriForm Shower Bases & Linear Drains
A10: 2015-08-19 | B10: TrueDEK Shower Foundation | C10: TB5936-TR-S, 59" x 36" Tub Replacement Pan (Center drain hole located at the end).
A11: 2016-03-01 | B11: TrueDEK Classic Foundation | C11: TB5959-S, 59" x 59" Classic Base
A12: 2016-03-01 | B12: TrueDEK Waterproofing Installation Materials: | C12: WP1050-STD Standard Waterproofing Kit
C13: WP1000-PRE Premium Waterproofing Kit
C14: WP1090-PRO Pro Waterproofing Kit
C15: (The above Waterproofing Kits do not include the Drain Assemblies w/Grates)
C16: WP2001-TNK Tank/10 Waterproofing Compound 1 Gallon size
C17: WP2002-TNK Tank/10 Waterproofing Compound 2 Gallon size
C18: WP3425-JRT, 5" x 25' Roll Joint Reinforcement Tape
C19: WP3450-JRT 5" x 50' Roll Joint Reinforcement Tape
C20: WP3490-JRT, 5" x 490' Roll Joint Reinforcement Tape
C21: WP3101-INT Internal Corner & WP3201-EXT External Corner (sold by the single piece)
C22: WP3112-INT Internal Corner and WP3212-EXT External Corner (sold 12 Pieces/SET)
A23: 2016-03-01 | B23: Mullen Shower Accessories | C23: MB0060-TLA Tiling Adaptor Kit (Fits 60" Alcove Bases)
A24: 2016-03-01 | B24: Caregiver Doors | C24: CD2021-HG Door Handle, Hinged (for use with Mullen Base)
C25: CD2022-FX Door Handle, Fixed (for use with Mullen Base)
A26: 2016-03-01 | B26: Velena Devote Shower Seats | C26: Shower Seats with sleek appeal for modern spa-style showers
A27: 2016-03-01 | B27: Velena Grab Bars | C27: Grab Bars with modern, elegant and slim styling
A28: 2016-05-31 | B28: TrueDEK Installation Materials | C28: CD1290-CH Drain Assembly w/ Chrome Grate.
A29: 2017-04-03 | B29: TrueDEK Installation Materials | C29: CD1250-BS Drain Assembly w/ Brushed Stainless Steel Pinhole Pattern Grate, CD1240-ORB Drain Assembly w/ Oil-Rubbed Bronze Pinhole Pattern Grate and CD1280-CH Drain Assembly w/ Polished Stainless Steel Pinhole Pattern Grate.
A30: 2017-04-03 | B30: MaxBench Shower Bench with Adjustable Height | C30: BB1000-WH 25-1/4" wide seat Fold-up shower seat.
A31: 2017-08-14 | B31: TrueDEK Installation Materials | C31: CD1220-BS Drain Assembly w/ Brushed Stainless Steel Grid Pattern Grate, CD1222-ORB Drain Assembly w/ Oil-Rubbed Bronze Grid Pattern Grate and CD1221-CH Drain Assembly w/ Polished Stainless Steel Grid Pattern Grate.
A32: 2017-08-14 | B32: TrueDEK/TriForm Linear Shower Foundations | C32: TrueDEK Shuffle Linear Drain Shower Receptor Bases added.
A33: 2018-02-12 | B33: TrueDEK Waterproofing/Tuff-Form Installation Materials | C33: 5 Gallon WP2005-TNK Tank/10 Waterproofing Compound now available.
A34: 2018-04-06 | B34: ShuffleDEK Shower Bases | C34: Left and Right Hand Stainless Steel Trim pieces added.
A35: 2018-04-06 | B35: TrueDEK Classic Shower Bases | C35: TB1616-S, 16" x 16" Classic Base added.
A36: 2018-04-06 | B36: TrueDEK Waterproofing/Installation Materials | C36: The following items have been added to the WP1090-PRO Pro Waterproofing Kit: 32 #9 x 2" Premium Torx-drive Coated Screws, 1 Torx Bit Driver, 6 10 oz. tubes of Tank/10 Polyurethane Construction Adhesive, 1 10 oz. tube of Painter's Acrylic Latex Caulk, 2 Pairs of Nitrile Gloves, 1 Paint Roller Handle, 2 Paint Roller Covers and 1 Paint Brush. (These updated kits will be available once our inventory of the old kits is sold. The Net Price for the new updated kits will be $234.80 Each.)
A37: 2018-04-06 | B37: TrueDEK Waterproofing/Installation Materials | C37: Now available individually by the full carton: WP2112-TNK Tank/10 Polyurethane Construction Adhesive, WP4010-PAC Painter's Acrylic Latex Caulk and WP4011-SCR #9 x 2" Premium Torx-drive Coated Screws.
A38: 2018-11-20 | B38: TrueDEK Classic Shower Bases | C38: TB4812-PXT 48" x 12" TruDEK Pitch Extension added.
A39: 2019-03-12 | B39: FastDEK Shower Bases | C39: No Tile bases with finished anti-slip texture finish. Available in colors Black, Gray and White.
A40: 2019-03-12 | B40: TrueDEK Classic Shower Bases | C40: TB6535-S 65" x 35-1/2" Shower Base added.
A41: 2019-03-12 | B41: TrueDEK Linear Shower Bases | C41: TB3535-L 35-1/2" x 35-1/2" and TB3939-L 39-3/8" x 39-3/8" TrueDEK Linear Bases are available again. (ARC had discontinued them but reconsidered and decided to continue offering them.)
A42: 2019-03-12 | B42: TrueDEK Waterproofing/Tuff-Form Installation Materials | C42: WP2003-TNK 3-1/2 Gallon size of Tank/10 Waterproofing Compound and WP5000-MXV Mixer Valve Gasket added. Tank/10 Polyurethane Construction Adhesive now available in single 10 oz. tube as well as by the carton of 12 each.
A43: 2019-08-14 | B43: TrueDEK Classic Drains | C43: The Classic Drains in the Grid, Pinhole & Swirl patterns are now available in the Matte Black finish.
A44: 2020-04-02 | B44: FastDEK Shower Bases | C44: Five No Tile Shower Base sizes added and a color Grey Shower Base option and is available in all sizes.
A45: 2020-04-02 | B45: Heavy-Duty Grab Bars & Supports | C45: Gray Straight Heavy-Duty Comfort Grip Grab Bars that were previously discontinued are available again.
A46: 2020-04-02 | B46: ShuffleDEK Linear Formers | C46: Drain Covers that get filled in with tile added in various lengths.
A47: 2020-04-02 | B47: TrueDEK Waterproofing/Tuff-Form Installation Materials | C47: WP2000-TNK 1/2 Gallon size of Tank/10 Waterproofing Compound added.
A48: 2020-04-02 | B48: Tuff Form8 Formers | C48: Shower Bases with the added benefit of a rotating drain plate.
A49: 2021-03-16 | B49: TrueDEK Linear Formers & Linear Drain Covers | C49: #21210, 59" x 35-1/2" TrueDEK Linear Base added. #21211 Solid Drain Grate and #21228 Slotted Drain Grate added and are only compatible with the 21210 59" x 35-1/2" TrueDEK Linear Base.
A50: 2021-11-09 | B50: FastDEK Linear Shower Bases | C50: Linear No Tile bases with finished anti-slip texture finish added and are available in color white only in 3 sizes.
A51: 2021-11-09 | B51: FastNICHE Shower Niches | C51: No Tile, quick and easy to install, FastNICHE shower niches are constructed from sheet-molded compound plastic (SMC) for strength. All sizes are available in a glossy white finish with the FastNICHE Full also offered in matte black.
A52: 2021-11-09 | B52: Glass Shower Screens | C52: 3 glass shower screens added with a matte black finish on the frame/border pieces.
A53: 2021-11-09 | B53: Glass Shower Screens & Deflector Panels | C53: Available in 8 different Screen widths.
A54: 2021-11-09 | B54: Heavy-Duty Grab Bars & Supports | C54: #01820-BU 26-3/4" height Fold-up Blue Support Bar with Fixed Leg added.
A55: 2021-11-09 | B55: Origins Wall Panels | C55: No Tile Wall panels that are made of structural WPS plywood substrate.
A56: 2021-11-09 | B56: TrueBOARD Tileable Wall Kit | C56: #27738 3' x 5' x 1/2" Tileable backer board kit and #WP1080-TRU installation kit.
A57: 2021-11-09 | B57: TrueDEK Classic Shower Bases | C57: #21035 60" x 36" Tub Replacement Pan (Center drain hole located on end) Shower Base added.
A58: 2021-11-09 | B58: TrueDEK Linear Shower Bases | C58: #21210 59" x 35-1/2" TrueDEK Linear Base (Tub Replacement Size) added. #21211 Linear Drain Assy. w/ Brushed Stainless Steel Solid Cover and #21228 Linear Drain Assy. w/ Brushed Stainless Steel Slotted Cover added and are only compatible with the 21210 59" x 35-1/2" TrueDEK Linear Base.
A59: 2021-11-09 | B59: Velena Series Seats | C59: Available with or without an adjustable leg and with Black or White pad.
A60: 2022-02-25 | B60: FastDEK Linear Shower Bases | C60: #21240 72" x 48" Ultimate Linear Shower Base added. Spare Stainless Steel Drain Covers added to line.
A61: 2022-02-25 | B61: TrueDEK Classic Shower Bases | C61: #21053 72" x 48" Shower Base added.
A62: 2022-02-25 | B62: TrueDEK Linear Drains | C62: Linear Drain Assembly Solid and Slotted color options Matte Black and Oil-Rubbed Bronze added.
A63: 2022-02-25 | B63: TrueDEK Shower Bases | C63: TB6012-PXT 12" x 60" TruePITCH Extension. (Replacing the #TB4812-PXT 48" x 12" TruePITCH Extension.)
A64: 2022-09-27 | B64: Rugao Grab Bars | C64: Available in 12", 18" or 24" lengths and in colors Dark Grey or White.
A65: 2022-09-27 | B65: Velena Bathroom Accessories | C65: Available in 8 different options, some available in colors Black or White.
A66: 2023-07-10 | B66: TrueDEK Classic Drains | C66: CD1260 Classic Tile-In Drain Assembly w/ Stainless Steel Drain Cover. Compatible with all TrueDEK Classic and TrueDEK Classic8 shower bases.
A67: 2023-08-29 | B67: FastDEK Shower Bases | C67: 12839WH 59" x 35-1/2" and 11894 78-3/4" x 39-3/8" White FastDEK Bases added. FastDEK Ramp and Ramp Corner added as well as the FB2000-IK FastDEK Installation Kit.
A68: 2023-08-29 | B68: FastDEK Standalone Shower Kits | C68: Standalone shower complete with base, wall panels, glass screen and door.
A69: 2023-08-29 | B69: TrueDEK Classic Drains | C69: Classic Drains in the Pinhole & Swirl patterns are now available in the Satin Brass finish.
A70: 2023-08-29 | B70: Velena Wall Panels | C70: No Tile Wall panels constructed from durable sheet-molded compound plastic (SMC), the same rigid material as the TrueDEK Classic Shower Bases. They offer high mechanical strength and an extremely durable watertight finish, with the panels joined using aluminum trims and sealed with silicone caulk.
A74: Discontinued Products
A75: 2012-05-08 | B75: Tuff-Form Installation Materials | C75: LB00113 Standard Mapei Kit
A76: 2013-09-05 | B76: Caregiver Doors | C76: 15290 Standard Alcove Caregiver Door for Mullen Pan
A77: 2015-01-01 | B77: Tuff-Form Installation Materials | C77: LB00121 Mapegum 55 lb size.
A78: 2015-01-01 | B78: Mullen Shower Accessories | C78: 26261, 26262, 26263 and 26264 Alcove Adaption Kits for Mullen Shower Pans.
A79: 2015-01-01 | B79: DeWalt Concrete Saw | C79: ARC560 DeWalt Masonry Saw Kit and ARC561 DeWalt Masonry Replacement Blade.
A80: 2015-01-01 | B80: Caregiver Doors | C80: #'s 91112N (54-1/2" to 55-1/2" width), 91179N (50-3/4" to 51-3/4" width) and 91181N (58-1/2" to 59-1/2" width) Standard Alcove Caregiver Door for Tuff Form Pan.
A81: 2015-01-01 | B81: Deluxe Shower Seats without Backs & Arms | C81: 4070 18-1/8" wide Standard Seat(No Pad), 04110 23" wide Wide Seat(No Pad), 04100 18-1/8" wide Standard U-Shaped Seat(No Pad), 04120 23" wide Wide U-Shaped Seat(No Pad),
A82: 2015-01-01 | B82: Sturdy Bathing Stools | C82: 22411 17-5/8" wide Adjustable Height Molded Bath Seat.
A83: 2015-01-01 | B83: Lifetime Vanities | C83: All Models.
A84: 2016-03-01 | B84: Tuff-Form Installation Materials - | C84: ARC565 Standard Waterproofing Kit with Stainless Steel Grate
C85: ARC565 Standard Waterproofing Kit with Stainless Steel Grate
C86: ARC565SB Standard Waterproofing Kit with Satin Brass Grate
C87: ARC565ORB Standard Waterproofing Kit with Oil-Rubbed Bronze Grate
C88: ARC566 Premium Waterproofing Kit with Stainless Steel Grate
C89: ARC566SB Premium Waterproofing Kit with Satin Brass Grate
C90: ARC566ORB Premium Waterproofing Kit with Oil-Rubbed Bronze Grate
C91: ARC122 Drain Adaptor w/ Satin Brass Grate
C92: ARC124 Drain Adaptor w/ Satin Brass Grate & Drain Gasket
C93: LB00116 Mapeband Internal Corners and LB00117 Mapeband External Corners, (replaced with Corners shown in the new products section).
C94: LB00119 Mapeband Drain Outlet Gasket, (now included with the tile Drain Assemblies w/grate).
A95: 2016-03-01 | B95: TriForm Linear Shower Foundations | C95: 21214 and 21216 Linear Drain Assemblies
A96: 2016-03-01 | B96: Mullen Shower Pan w/Integrated Clamp | C96: The following Corner Shower Pans:
C97: 26100 42" x 42"
C98: 26101 49-7/8" x 30-1/8", left and right handled pans
C99: 26072 49-7/8" x 34-7/8", left and right handled pans
C100: 26102 53-7/8" x 30-1/8", left and right handled pans
C101: 26107 53-7/8" x 34-7/8", left and right handled pans
C102: 26104 58-1/2" x 30-1/8", left and right handled pans
A103: 2016-03-01 | B103: Step Safely Warm Floor | C103: All Step Safely Warm Floor products
A104: 2016-03-01 | B104: Hands-Free Body Dryer | C104: BD1000 82" high White Hands-Free Body Dryer
A105: 2016-03-01 | B105: Bendy Rails & Breathable Curtains | C105: The following Breathable Curtains:
C106: 24073 84" x 84"
C107: 24074 35-1/4" x 78-3/4"
C108: 24075 70-3/4" x 55"
C109: 24076 70-3/4" x 70-3/4"
C110: 24080 70-3/4" x 94-1/2"
A111: 2016-03-01 | B111: Deluxe Shower Seat | C111: 04570 25-7/8" Extra-Wide Seat with No Pad
A112: 2017-04-03 | B112: Mullen Shower Pan w/Integrated Clamp | C112: All Mullen Shower Pans.
A113: 2017-04-03 | B113: Mullen Shower Accessories | C113: All Mullen Shower Accessories.
A114: 2017-04-03 | B114: Sturdy Bathing Stools with Adjustable Height | C114: All Sturdy Bathing Stools; BS2300-WH (old #02300) 19-5/8" wide Shower Stool without Back, BS2310-WH (old #02310) 19-5/8" wide Shower Stool with Back and BS2320-WS (old #05080) 19-5/8" wide Wood Slatted Stool.
A115: 2017-04-03 | B115: Velena Devote Shower Seats | C115: All Velena Devote Shower Seats.
A116: 2017-04-03 | B116: Adjustable Toilet Seat | C116: BS2330-WH (old #ARC243) White Adjustable Toilet Seat.
A117: 2017-04-03 | B117: Velena Grab Bars | C117: All Velena Grab Bars.
A118: 2018-02-12 | B118: Caregiver Doors | C118: CD2959-WB (old #15177) 58-7/8" to 60-1/4" wide Caregiver Door - White w/Black Trim, CD2011-WB (old #24139) Extra-wide Compensator - White w/Black Trim, CD2023-HG (old #ARC241) Door Handle - Hinged/White and CD2024-FX (old #ARC242) Door Handle - Fixed/White.
A119: 2018-02-12 | B119: MaxBench Shower Bench with Adjustable Height | C119: BB1000-WH 25-1/4" wide seat MaxBench Fold-up Shower Seat.
A120: 2018-04-06 | B120: TrueDEK Waterproofing/Installation Materials | C120: WP1050-STD Standard Waterproofing Kit and WP3490-JRT 5" x 490' Roll of Joint Reinforcement Tape.
A121: 2018-11-20 | B121: TrueDEK Linear Shower Bases | C121: TB3535-L 35-1/2" x 35-1/2" and TB3939-L 39-3/8" x 39-3/8" TrueDEK Linear Bases only.
A122: 2018-11-20 | B122: Heavy-Duty Grab Bars & Supports | C122: GB1902-GR 12" Gray, GB1907-GR 16" Gray, GB1911-BU 18" Blue, GB1912-GR 18" Gray, GB1922-GR 24" Gray, GB1932-GR 32" Gray, GB1942-GR 36" Gray & GB1952-GR 42" Gray Straight Heavy-Duty Comfort Grip Grab Bars only.
A123: 2020-04-02 | B123: TrueDEK Waterproofing/Tuff-Form Installation Materials | C123: WP2003-TNK 3-1/2 Gallon size of Tank/10 Waterproofing Compound and WP4011-SCR #9 x 2" Premium Torx-drive Coated Screws.
A124: 2020-12-21 | B124: TrueDEK Classic Drains | C124: CD1220-BS Classic Drain Assembly w/ Brushed Stainless Steel Grid Pattern Grate.
A125: 2021-03-16 | B125: TrueDEK Classic Formers | C125: 59" x 59" TB5959-S and 65" x 35-1/2" TB6535-S TrueDEK Classic Formers only.
A126: 2021-12-21 | B126: Deluxe Shower Seats without Back & Arms (4000 Series) | C126: 23" wide seat 04110P w/Blue Pad and the 04210P w/Gray Pad.
A127: 2021-12-21 | B127: Glass Shower Screens | C127: LB00112 39-3/8" x 76-3/4" Freestanding Glass Screen.
A128: 2021-12-21 | B128: ShuffleDEK Linear Formers | C128: All ShuffleDEK bases, drain covers and trim.
A129: 2021-12-21 | B129: Transition Grab Bars | C129: #01200-BR 12" Brown Flat End Grab Bar and #01210-BR 18" Brown Flat End Grab Bar.
A130: 2021-12-21 | B130: TrueDEK Classic Drains | C130: CD1221-CH Classic Drain Assembly w/ Polished Stainless Steel Grid Pattern Grate, CD1222-ORB Classic Drain Assembly w/ Oil-Rubbed Bronze Grid Pattern Grate and CD1223-BK Classic Drain Assembly w/ Matte Black Grid Pattern Grate.
A131: 2021-12-21 | B131: TrueDEK Classic MiniDEK Former | C131: #21001 16" x 16" TrueDEK Classic MiniDEK Former.
A132: 2022-02-25 | B132: Heavy-Duty Grab Bars & Supports | C132: 01820-BU Blue Fold-up Support Bar with Fixed Leg only.
A133: 2022-02-25 | B133: TrueBOARD Tileable Wall Kit | C133: #WP1080-TRU installation kit. (ARC is recommending the WP1000-PRE Premium Waterproofing Kit or the WP1090-PRO Pro Waterproofing Kit for installation.)
A134: 2022-02-25 | B134: TrueDEK Shower Bases | C134: #TB4812-PXT 48" x 12" TruePITCH Extension. (Replaced with the #TB6012-PXT 12" x 60" TruePITCH Extension.)
A135: 2023-08-29 | B135: Origins Wall Panels | C135: Entire offering.
A136: 2023-08-29 | B136: TrueBOARD Tileable Wall Kit | C136: Entire offering.
A137: 2023-08-29 | B137: Velena Bathroom Accessories | C137: Entire offering.
A141: Changes
A142: 2012-05-08 | B142: Fusion Shower Bases now called Tuff-Form Shower Bases. Wave Shower Pan now called Mullen Shower Pan.
A143: 2016-03-01 | B143: AKW is now known as "ARC". They have renamed the Tuff-Form Shower Bases and are now known as TrueDEK Classic Foundations. The TriForm Shower Bases are now know as TrueDEK Linear Foundations. Also, Mapegum has been replaced with Tank/10 Waterproofing Compound. All their item numbers have changed as well for their products. On our new price list we will reference the old number, if applicable, as well as new numbers. Drain Assemblies w/Grates are no longer included in the new Waterproofing Kits and must be purchased separately.
A144: 2017-04-03 | B144: TrueDEK Installation Materials | C144: WP3401-DRN (old #LB00119) Drain Gasket available for individual sale again.
A145: 2018-04-06 | B145: ShuffleDEK Shower Bases | C145: Item codes for the 3 ShuffleDEK Shower Bases have changed and also the side the drain is located on for the rectangular bases has changed as well: TB4747-LS is now TB4747SD, TB3547-LS is now TB3547-SD (long side drain) and the TB4735-LS is now TB4735-SD (short side drain).
A146: 2020-04-02 | B146: General Information | C146: Accessibility Resource Center, Inc. has recently been acquired by AKW Holdings. AKW has been ARC’s main source of products since their founding in 2010. One of the most notable benefits of this merger will be the lowering of prices across the product range. Their new name is AKW Resource Centre, Inc., but they will continue to call themselves ARC, Inc.. As a result of this merger several of ARC's part numbers will be reverting back to their original part numbers. The new price list will reflect these changes as well as reference the previous part numbers used.
A147: 2020-04-02 | B147: Frameless Glass Shower Screens | C147: Now known as Level Best Shower Screens.
A148: 2020-04-02 | B148: ShuffleDEK Shower Bases | C148: Now known as ShuffleDEK Linear Formers.
A149: 2020-04-02 | B149: TrueDEK Classic Foundations | C149: Now known as TrueDEK Classic Formers.
A150: 2020-04-02 | B150: TrueDEK Linear Shower Bases | C150: Now known as TrueDEK Linear Formers & Linear Drain Covers.
A151: 2021-03-16 | B151: TrueDEK Classic Formers | C151: The TB5936-TR-S 59" x 36" Tub Replacement Pan (Center drain hole located on end) has been replaced with #21035 60" x 36" Tub Replacement Pan (Center drain hole located on end). It is now light blue in color and has the ribbed backing.
A152: 2023-08-29 | B152: Glass Shower Screens | C152: Item codes for the 4 Screens with Polished Chrome finished frame/border have changed. LB00105 is now LB00215, LB00106 is now LB00216, LB00107 is LB00217 and LB00108 is now LB00218.
